{"text_format":"1","workbook":"xlsx","n_sheets":13,"sheets":["READ ME 1ST","1. Signature Page","2. Contact Information","3. Assurances ","4. Use of Funds","5. Budget","Schedule A","For DESE Use Only","Dropdowns","DataLookupValues","LiaisonList","dataDistrictList","Data Collection"],"not_rendered":{"charts":0,"images":0,"macros":1,"external_links":1,"defined_names":101,"comments":0,"pivot_tables":0},"unopened":[],"bounds":{"document_bytes":16777216,"sheet_cells":100000,"rows_first":2000,"rows_last":500,"rows_between":2000,"halvings":0,"cell_chars":16384,"cell_head_chars":4096},"cells_cut":0,"cells_raw":0,"read":"whole","date_system":"1900"}

{"sheet":"READ ME 1ST","index":0,"n_rows":24,"n_cols":2,"rows_kept":24,"cut":false,"hidden":false,"merged":[[10,1,17,12],[9,1,9,12],[45,2,45,4],[46,2,46,4],[19,1,19,12],[20,1,20,12],[23,1,23,12],[21,1,21,12],[24,1,24,11],[25,1,25,11],[18,1,18,12],[32,1,32,4],[28,2,28,4],[29,2,29,4],[30,2,30,4],[22,1,22,12],[50,2,50,4],[33,1,33,4],[34,2,34,4],[36,2,36,4],[44,1,44,4],[40,2,40,4],[48,2,48,4],[49,2,49,4],[47,2,47,4],[7,1,7,12],[8,1,8,12],[3,1,3,12],[1,1,1,11],[4,1,6,12],[2,1,2,12]]}
[]
[null,"Massachusetts Department of Elementary & Secondary Education"]
[null,"FY21/FY22 Elementary and Secondary School Emergency Relief II Fund Application "]
[null,"Overview"]
[null,"\n    This application allows LEAs (districts and other eligible entities, referred to in this application collectively as districts) to apply for funding for\n     the following federal program:  Fund Code 115, Elementary and Secondary School Emergency Relief (ESSER II) Fund authorized\n     by the Coronavirus Response and Relief Supplemental Appropriations Act (2020) (CRRSA Act).  While similar to ESSER I, funded by the\n     CARES Act, there are modifications to the amount of funding, as well as expanded uses of funds in ESSER II.  \n    ESSER II does not require districts to provide equitable services to private schools.\n\n    This grant has two possible deadlines. Each district should choose the one that best fits its needs. Selection of FY21 or FY22\n      will affect the beginning obligation date for these funds but does not affect the final date for fund obligation (September 30, 2023).  See RFP for more information.\n\n      Option 1:  Application due date if you want to obligate ESSER II funds in FY21 is Wednesday, March 31, 2021. Applicants who intend to obligate\n        any funds in FY21 (FY21 period of availability is upon approval through 6/30/2021) should submit by this deadline. \n \n      Option 2:  Application due date if you want to begin obligating ESSER II funds in FY22 is Friday, July 30, 2021. Applicants who do not \n        intend to obligate any funds in FY21, but plan to begin using these funds in FY22 should submit by this deadline (FY22 period of availability is\n        7/1/2021-6/30/2022).  \n \nApplicants who do not expect to obligate any ESSER II funds prior to July 1, 2021 should submit under Option 2 for an FY22 start.  A start date cannot be given until you have submitted a substantially approvable application and budget for the grant. If you have questions about these deadlines, please contact your federal grants liaison.\n                     \n"]
[]
[]
[null,"First Step:  Saving the File"]
[null,"Save this file to your computer (Important: ensure macros are enabled).  Rename the file by replacing the words 'leacode' in the file name with your 4-digit district code. For example, Abington (0001) would rename the file as 'ESSERII-0001.xlsm'. Do not change the filename except for your district's 4-digit code. Users of Macintosh computers must save as a macro-enabled file (with an .xlsm extension) to their desktop for the workbook to function properly."]
[null,"Tips for Completing the ESSER II Fund Application"]
[null,"  \n Workflow and printing:  \n   •  Complete the Signature Page first.  The rest of the tabs do not need to be completed in order, but your application will not be considered substantially\n         approvable if you leave required  information blank.\n\n    •  Complete the steps on each tab in the order that they are numbered. Note that some steps may not be required for your district and may be skipped.\n\n   •  The Budget worksheet (Tab 5) must be completed.  This tab mirrors the budget entry page in EdGrants with the addition of sections re: equipment and \n       certain contracts.  The budget worksheet is mandatory, in addition to entering budget information in EdGrants. \n\n   •  This workbook is structured to be used in electronic format.  However, you can print a copy using Excel's print preview functions to set the appearance and \n        paper orientation to best fit your completed application.  \n   \n  Color-coding and cell features:\n   •  Those cells that appear light yellow require districts to input information.  Text may be pasted into these cells as long as the source of the information has no\n         Excel formulas or formatting.  \n\n   •  Those cells that appear light gray will automatically populate based on information your district supplies on the application or from preloaded data already\n       reported to the Department of Elementary and Secondary Education (DESE) (for example, SIMS data).  Do not cut and paste information from other pages or\n       sources into gray cells!  \n\n   •  Those cells that appear in light orange offer a dropdown menu from which districts can choose a supplied response.   Do not cut and paste information from\n       other pages or sources into orange cells! \n\n   •  Throughout the tabs of this application you will find instruction boxes, tip boxes (pink) to help avoid common mistakes, and resource boxes (tan) that\n       include links to materials outside the application with more detailed, grant-related information.\n"]
[]
[]
[]
[]
[]
[]
[]
[null,"Submit the FY21/FY22 ESSER Application as an Excel workbook via\nEdGrants Front Office web page"]
[null,"EdGrants Submission Information:\nMost districts/applicants already have designated control users in EdGrants Front Office, who have access to submit grant applications as well as to make payment requests.  Each district/applicant needs to ensure that it has an authorized control user prior to grant submission.  If a district waits until its grant submission is ready to submit before inquiring about a new user name/login, grant submissions may be delayed several business days waiting for control user set-up.  Please review the EdGrants Security Controls documents and/or contact DESE's Grants Management Office, 781-338-6595 or EdGrants@doe.mass.edu, regarding assigning your EdGrants Front Office control users.  "]
[null,"The district/applicant control users will register each grant opportunity, create each grant project and enter contact information, budget, and required attachments in EdGrants. All districts' business offices have been contacted with information regarding training.  If you are unsure of who in your office is a control user, please contact your business office.  The ESSER II Fund Application Workbook and a signed and dated  .pdf of the Signature Page (Tab 1.) must be uploaded with your budget in EdGrants."]
[null,"FY21 applications are due by March 31, 2021 or FY22 applications are due by July 30, 2021"]
[null,"NOTE ON SUBMISSION TIMELINE: "]
[null,"   \n    •  For FY21 grants (submitted and substantially approvable by March 31, 2021), the start date is upon approval; for FY22 grants\n        the start date will be the later of the date on which the district submits substantially approvable information and budget for the grant\n        or July 1, 2021.  \n    •  Responding quickly to requests for information can result in an earlier approval of your grant application.  \n    •  Grant payment notices will be available in EdGrants after the grant application has been approved and the initial payment is processed.\n"]

{"sheet":"1. Signature Page","index":1,"n_rows":33,"n_cols":17,"rows_kept":33,"cut":false,"hidden":false,"merged":[[29,13,30,15],[29,16,30,19],[32,1,32,19],[26,13,26,15],[26,16,28,19],[28,13,28,15],[25,1,28,3],[25,4,25,8],[25,16,25,19],[26,4,28,8],[25,10,25,15],[26,10,26,12],[27,10,27,12],[28,10,28,12],[27,9,28,9],[27,13,27,15],[10,5,10,11],[1,1,2,19],[4,1,4,19],[5,1,5,19],[21,12,21,13],[11,5,11,11],[17,1,18,19],[20,1,20,4],[20,5,20,10],[20,12,20,13],[20,14,20,18],[21,14,21,18],[21,1,21,4],[21,5,21,10]]}
[]
[null,"Massachusetts Department of Elementary and Secondary Education\nSTANDARD CONTRACT FORM AND APPLICATION FOR PROGRAM GRANTS"]
[]
[]
[null,"UPLOAD A SCANNED, SIGNED COPY OF THIS PAGE WITH THE DATE OF SUBMISSION TO EDGRANTS WITH THE BUDGET FOR  ESSER FUND CODE 115"]
[null,"District staff with the role of “control user” in EdGrants have been provided user log-in names and passwords and have been trained to submit a grant application via EdGrants. Provide all required application materials to your\n district control user with access to EdGrants in order to submit budget and attachments.                                                              \n                 FY21 Applications are due by March 31, 2021 or FY22 Applications are due by July 30, 2021"]
[]
[]
[null,null,null,"District Name:",null,null,null,null,null,null,null,null,"Code:",null,{"$f":"valorg4code","v":"DIST"}]
[]
[null,null,null,"Address: ",null,{"$f":"IF(valAddr2=\"\", valAddr1, valAddr1&\", \"&valAddr2)","v":"ADDR 1, ADDR 2"},null,null,null,null,null,null,"DESE Federal Grant Liaison",null,{"$f":"valname","v":"Liaison's Name"}]
[null,null,null,null,null,{"$f":"valCtyStZip","v":"City, State Zip"},null,null,null,null,null,null,"Phone number:",null,{"$f":"valphonenum","v":"Liaison's Number"}]
[null,null,null,null,null,null,null,null,null,null,null,null,"Email:",null,{"$f":"valemail","v":"Liaison's Email"}]
[]
[]
[null,null,null,null,null,null,null,null,null,null,null,null,"`"]
[]
[null,"I CERTIFY THAT THE INFORMATION CONTAINED IN THIS APPLICATION IS CORRECT AND COMPLETE; THAT THE APPLICANT AGENCY HAS AUTHORIZED ME, AS ITS REPRESENTATIVE, TO FILE THIS APPLICATION; AND THAT I UNDERSTAND THAT FOR ANY FUNDS RECEIVED THROUGH THIS APPLICATION THE AGENCY AGREES TO COMPLY WITH ALL APPLICABLE STATE AND FEDERAL GRANT REQUIREMENTS COVERING BOTH THE PROGRAMMATIC AND FISCAL ADMINISTRATION OF GRANT FUNDS, INCLUDING USING THE GRANT FUNDS FOR ACTIVITIES ALLOWABLE UNDER SECTION 18003(d) OF THE CARES ACT.  IN ADDITION THE APPLICANT AGENCY ACKNOWLEDGES AND AFFIRMS THAT ITS FY21 FEDERAL GRANT ASSURANCES (AS WELL AS ANY FUTURE ASSURANCES PROVIDED DURING THE GRANT PERIOD) APPLY TO THIS GRANT."]
[]
[]
[null,"AUTHORIZED SIGNATURE:",null,null,null,null,null,null,null,null,null,null,"TITLE:"]
[null,"PRINTED NAME:",null,null,null,null,null,null,null,null,null,null,"SUBMISSION DATE:"]
[]
[]
[]
[null,"FY2021/FY2022 \nAllocation",null,null,"FEDERAL GRANT",null,null,null,null,null,"PROJECT DURATION",null,null,null,null,null,"TOTAL ALLOCATION"]
[null,null,null,null,"ESSER II Fund \nFund Code 115",null,null,null,null,"Starting FY","FROM",null,null,"TO",null,null,{"$f":"IF(Q30=\"\", DataLookupValues!B11, \"\")","v":"ESSER II Allocation"}]
[null,null,null,null,null,null,null,null,null,"Select One","IF FY2021, UPON APPROVAL",null,null,"2021-06-30"]
[null,null,null,null,null,null,null,null,null,null,"IF FY2022, THE LATER OF:  UPON APPROVAL OR JULY 1, 2021",null,null,"6/30/2022"]
[null,null,null,null,null,null,null,null,null,null,null,null,null,"Total Allocation for Schedule A Consortium\nFor Those Districts Filing Schedule A only"]
[]
[]
[null,"UPLOAD A SCANNED, SIGNED COPY OF THIS PAGE WITH THE DATE OF SUBMISSION TO EDGRANTS WITH THE BUDGET FOR THIS GRANT\nBY March 31, 2021 for FY21 or July 30, 2021 for FY22"]

{"sheet":"2. Contact Information","index":2,"n_rows":14,"n_cols":2,"rows_kept":14,"cut":false,"hidden":false,"merged":[[12,2,12,11],[13,2,13,11],[9,1,9,11],[10,1,10,3],[10,4,10,11],[6,1,6,2],[6,3,6,11],[7,2,7,11],[8,2,8,11],[11,1,11,2],[11,3,11,11],[1,1,1,3],[3,1,3,11],[3,13,5,17],[4,1,4,11],[5,1,5,3],[5,4,5,11]]}
[]
[null,{"$f":"valDistrName & \" (\"&valorg4code&\")\"","v":"OrgName (DIST)"}]
[]
[null,"District Contact Information \nPlease provide information for primary district contact for your district's ESSER II Fund application"]
[null,"ESSER II Fund Application"]
[null,"Name of Primary Contact:"]
[null,"Title:"]
[null,"Phone:"]
[null,"Email:"]
[null,"EdGrants Control User (person responsible for uploading to EdGrants, if different person from above)"]
[null,"Name of Primary Contact:"]
[null,"Title:"]
[null,"Phone:"]
[null,"Email:"]

{"sheet":"3. Assurances ","index":3,"n_rows":16,"n_cols":13,"rows_kept":16,"cut":false,"hidden":false,"merged":[[15,1,15,11],[10,1,11,12],[3,1,3,12],[6,1,6,12],[1,1,1,7],[8,1,8,11],[12,1,12,11],[13,1,13,11],[14,1,14,11],[5,1,5,12]]}
[]
[null,{"$f":"valDistrName & \" (\"&valorg4code&\")\"","v":"OrgName (DIST)"}]
[]
[null,"Assurances re: FY20-21 Elementary and Secondary School Emergency Relief \n(ESSER I) grant (Fund Code 113) and provision of equitable services"]
[]
[null,"ESSER II DOES NOT REQUIRE DISTRICTS TO PROVIDE EQUITABLE SERVICES TO NONPUBLIC SCHOOLS. However, DESE is using this opportunity to ensure that districts are aware of and have met their obligation to provide equitable services under the FY20.FY21\nCARES Act ESSER program (Fund Code 113, \"ESSER I\")."]
[null,"By checking the boxes below, the authorized representative of the above district signing this application assures that the district has met its responsibilities for provision of equitable services under the FY20.21 ESSER I grant (Fund Code 113) or that the district does not participate in equitable services.  If your district has not met these responsibilities, but has eligible private schools, please contact your liaison immediately to discuss."]
[]
[null,"Our district does not provide equitable services because we do not have eligible private schools or we are a charter, vocational or virtual school and are not required to provide equitable services.",null,null,null,null,null,null,null,null,null,null,"Select One"]
[null,"Or:"]
[null,"Our district has read and followed the guidance for ESSER I Equitable Services issued by the Department of Elementary and Secondary Education including that appearing in its memorandum of October 1, 2020 (October 1 guidance, the substance of which can be found on DESE's website) and in DESE’s Frequently Asked Questions, as it applies to us.  Pursuant to this guidance, we have:"]
[]
[null,"1.   Reached out and offered to consult with any private school experiencing a change in the level of services\n       available or any newly eligible private school (whether or not funds are available to deliver equitable\n       services) due to recalculation of equitable services based on the October 1 guidance.  ",null,null,null,null,null,null,null,null,null,null,"Select One"]
[null,"2.  Consulted (or consulted again) with any private school participating in equitable services that experienced \n      a change in the level of services available or any newly eligible private school and  expected to receive\n      services due to recalculation according to the October 1 guidance.",null,null,null,null,null,null,null,null,null,null,"Select One"]
[null,"3.  For consultations described in the prior paragraph for newly eligible private schools, Affirmations of\n      Consultation have been submitted to DESE and any changes in our district’s ESSER budget due to recalculation\n      of equitable services have been made and approved.",null,null,null,null,null,null,null,null,null,null,"Select One"]
[null,"4.  Retained all records related to the outreach conducted as described in 1. and 2., above, and will make \n      those records available to DESE upon request.",null,null,null,null,null,null,null,null,null,null,"Select One"]

{"sheet":"4. Use of Funds","index":4,"n_rows":52,"n_cols":12,"rows_kept":52,"cut":false,"hidden":false,"merged":[[32,2,32,10],[33,2,33,10],[34,2,34,10],[35,2,35,10],[1,1,1,7],[5,1,8,11],[3,1,3,11],[16,2,16,11],[19,2,19,10],[17,2,17,10],[18,2,18,10],[11,2,11,11],[12,2,12,11],[10,2,10,11],[13,2,13,10],[42,2,42,10],[43,2,43,10],[47,2,47,10],[49,2,49,10],[51,2,51,10],[50,2,50,10],[45,2,45,10],[46,2,46,10],[48,2,48,10],[44,2,44,10],[41,2,41,10],[20,2,20,10],[21,2,21,10],[22,2,22,10],[23,2,23,10],[24,2,24,10],[31,2,31,10],[29,2,29,10],[38,2,38,10],[39,2,39,10],[26,2,26,10],[27,2,27,10],[36,2,36,10],[37,2,37,10],[40,2,40,10],[28,2,28,10]]}
[]
[null,{"$f":"valDistrName & \" (\"&valorg4code&\")\"","v":"OrgName (DIST)"}]
[]
[null,"Planned Uses of Funds"]
[]
[null,"\nESSER II Funds have substantial flexibilities in both allowable programmatic uses and the period covered for eligible expenses to allow districts to mitigate the effects \nof COVID-19 on students, families and staff and to prepare for reopening school systems. DESE's priority is to make these funds available to districts expeditiously \nwith minimum burden. For more information please see DESE's Elementary and Secondary School Emergency Relief Fund webpage and DESE's ESSER II Fund Quick Reference Guide.\n\nStep 4.2 lists categories of allowable uses for ESSER II funds.  As you initially plan for the use of your district's ESSER Funds, please consider the following to maximize\nthe benefit of these and other federal grant funds allocated to your district:\n\n               •  ESSER Funds are not Title I Funds. ESSER II Funds are not restricted to Title I's allowable uses nor do the funds have to be allocated to individual schools.\n               •  Supplement not Supplant does not apply. ESSER II Funds are not subject to supplement not supplant rules.\n               •  Maximize versatility of all federal grant funds.  Districts may have numerous federal grants from more than one fiscal year, including ESSER II Funds, \n                  available simultaneously. While availability of many federal entitlement grants have been extended, DESE recommends, where feasible, that districts \n                  spend from oldest funds first, to the extent the expenditures are allowable.\n             •  Monitoring and reporting will be required. "]
[]
[]
[]
[]
[null,"Step 4.1\nAll Districts","MENTAL HEALTH SUPPLEMENT\nAll districts received a supplement of $10,000 to their baseline ESSER II allocation from DESE's state-level ESSER II funding, which must be used to support students' mental health and wellbeing.  Please provide information below about your district's intended use of these funds."]
[null,null,"Briefly describe how ESSER II funds will be used to support the mental health needs of your students.  For example, indicate which staff will be funded, their role(s) and responsibilities, and whether they are school-based or districtwide."]
[]
[null,null,"Does your district intend to spend more than the required $10,000 minimum of ESSER II funds for mental health services?",null,null,null,null,null,null,null,null,"Select "]
[]
[]
[null,"Step 4.2\nAll Districts","ESSER II FUND ALLOWABLE EXPENDITURES\nOn which of the following allowable activities/categories does your district intend to spend its ESSER II Funds?\n(Select \"Yes\" for all that apply)"]
[null,null," 1.  Educational technology (internet connectivity, hardware, devices, software, tech support services, etc.).",null,null,null,null,null,null,null,null,"Select "]
[null,null," 2.  Supplies and services that enable remote learning (printing, telephonic support, translation services, etc.).",null,null,null,null,null,null,null,null,"Select "]
[null,null," 3.  Any activity authorized by: "]
[null,null,"\n                    •  ESSA (including Titles I, II, III, and IV),\n            \n                                        ",null,null,null,null,null,null,null,null,"Select "]
[null,null,"                •  IDEA, ",null,null,null,null,null,null,null,null,"Select "]
[null,null,"                •  Carl D. Perkins Career and Technical Education Act of 2006, ",null,null,null,null,null,null,null,null,"Select "]
[null,null,"                •  Subtitle B of Title VII of the McKinney-Vento Homeless Assistance Act, or",null,null,null,null,null,null,null,null,"Select "]
[null,null,"                •  Adult Education and Family Literacy Act.",null,null,null,null,null,null,null,null,"Select "]
[null,null," 4.   Planning for and coordinating during long-term closures, including:",null,null,null,null,null,null,null,null,"Select "]
[null,null,"             ·   how to provide meals to eligible students, ",null,null,null,null,null,null,null,null,"Select "]
[null,null,"             ·  how to provide technology for online learning to all students, ",null,null,null,null,null,null,null,null,"Select "]
[null,null,"             ·  how to provide guidance for carrying out requirements under the IDEA and",null,null,null,null,null,null,null,null,"Select "]
[null,null,"             ·   how to ensure other educational services can continue to be provided consistent with all Federal, State, and local\n                     requirements. ",null,null,null,null,null,null,null,null,"Select "]
[null,null," 5.   Mental health services and supports. A minimum of $10,000 must be used for student mental health services and supports.",null,null,null,null,null,null,null,null,"Yes"]
[null,null," 6.    Activities to address the unique needs of:"]
[null,null,"            ·  low-income children or students, ",null,null,null,null,null,null,null,null,"Select "]
[null,null,"            ·  children with disabilities, ",null,null,null,null,null,null,null,null,"Select "]
[null,null,"            ·   English learners, ",null,null,null,null,null,null,null,null,"Select "]
[null,null,"            ·  racial and ethnic minorities, ",null,null,null,null,null,null,null,null,"Select "]
[null,null,"            ·  students experiencing homelessness, and ",null,null,null,null,null,null,null,null,"Select "]
[null,null,"            ·  foster care youth.",null,null,null,null,null,null,null,null,"Select "]
[null,null," 7.  Diagnostic intake assessments to gauge students’ knowledge and skills (i.e. early literacy screening, etc.).",null,null,null,null,null,null,null,null,"Select "]
[null,null," 8.  Assessing and addressing learning loss, especially those groups listed in Category 6, above, including:"]
[null,null,"             ·  administering and using high-quality assessments,",null,null,null,null,null,null,null,null,"Select "]
[null,null,"                 ·   implementing evidence-based activities to meet student needs, ",null,null,null,null,null,null,null,null,"Select "]
[null,null,"                ·   providing information and assistance to parents and families to support students, including in a distance \n                     learning environment,",null,null,null,null,null,null,null,null,"Select "]
[null,null,"              ·  tracking attendance and improving engagement in distance learning.",null,null,null,null,null,null,null,null,"Select "]
[null,null," 9.  Planning and implementing activities related to summer learning and supplemental afterschool programs",null,null,null,null,null,null,null,null,"Select "]
[null,null," 10.    Providing principals and others school leaders with the resources to address individual school needs. ",null,null,null,null,null,null,null,null,"Select "]
[null,null," 11.   Training and professional development for district staff on any topic from effective remote learning strategies to sanitation \n          and minimizing the spread of infectious disease when in-person school resumes.",null,null,null,null,null,null,null,null,"Select "]
[null,null," 12.  Repairing and improving school facilities to reduce risk of virus transmission and exposure to environmental health hazards,\n         and to support student health needs.",null,null,null,null,null,null,null,null,"Select "]
[null,null," 13.   Services and supplies to sanitize district facilities; personal protective equipment (PPE).",null,null,null,null,null,null,null,null,"Select "]
[null,null," 14.  Inspection, testing, maintenance, repair, replacement, and upgrade projects to improve the indoor air quality in school facilities.",null,null,null,null,null,null,null,null,"Select "]
[null,null," 15.  Procedures and coordination systems to improve district preparedness, prevention, and response efforts to COVID-19, \n         including coordination with health departments  and other relevant agencies.",null,null,null,null,null,null,null,null,"Select "]
[null,null," 16.   Other activities necessary to maintain district operations and services and to continue to employ\n         existing district staff. ",null,null,null,null,null,null,null,null,"Select "]

{"sheet":"5. Budget","index":5,"n_rows":126,"n_cols":32,"rows_kept":126,"cut":false,"hidden":false,"merged":[[13,1,14,1],[14,4,14,12],[14,21,14,22],[1,3,1,11],[2,23,2,24],[3,3,3,29],[5,3,6,6],[5,7,6,8],[5,17,7,23],[6,9,6,10],[6,11,6,12],[7,3,7,6],[7,7,7,8],[19,5,19,8],[19,21,19,22],[20,21,20,22],[21,4,21,8],[22,21,22,22],[23,5,23,8],[23,21,23,22],[16,5,16,8],[16,21,16,22],[17,5,17,8],[17,21,17,22],[18,5,18,8],[18,21,18,22],[27,5,27,8],[27,21,27,22],[28,5,28,8],[28,21,28,22],[29,4,29,12],[29,21,29,22],[24,5,24,8],[24,21,24,22],[25,5,25,8],[25,21,25,22],[26,5,26,8],[26,21,26,22],[34,5,34,8],[34,21,34,22],[35,4,35,12],[36,4,36,8],[37,21,37,22],[38,5,38,8],[38,21,38,22],[30,4,30,8],[31,5,31,8],[31,21,31,22],[32,5,32,8],[32,21,32,22],[33,5,33,8],[33,21,33,22],[42,4,42,12],[43,4,43,8],[44,5,44,12],[44,21,44,22],[45,5,45,12],[45,21,45,22],[39,5,39,8],[39,21,39,22],[40,5,40,8],[40,21,40,22],[41,5,41,8],[41,21,41,22],[49,5,49,12],[49,21,49,22],[50,4,50,12],[52,21,52,22],[53,5,53,8],[53,21,53,22],[46,5,46,12],[46,21,46,22],[47,5,47,12],[47,21,47,22],[48,5,48,12],[48,21,48,22],[57,5,57,8],[57,21,57,22],[58,5,58,8],[58,21,58,22],[59,4,59,12],[61,21,61,22],[54,5,54,8],[54,21,54,22],[55,5,55,8],[55,21,55,22],[56,5,56,8],[56,21,56,22],[65,5,65,11],[65,21,65,22],[66,5,66,7],[68,5,68,11],[68,21,68,22],[69,5,69,11],[69,21,69,22],[62,5,62,11],[62,21,62,22],[63,5,63,11],[63,21,63,22],[64,5,64,11],[64,21,64,22],[73,4,73,12],[75,21,75,22],[76,5,76,11],[76,21,76,22],[77,5,77,11],[77,21,77,22],[70,5,70,11],[70,21,70,22],[71,5,71,11],[71,21,71,22],[72,5,72,11],[72,21,72,22],[81,5,81,11],[81,21,81,22],[82,4,82,12],[84,10,84,11],[85,10,85,11],[86,10,86,11],[78,5,78,11],[78,21,78,22],[79,5,79,11],[79,21,79,22],[80,5,80,11],[80,21,80,22],[100,18,100,23],[103,1,104,1],[103,3,103,29],[104,3,105,29],[106,3,106,10],[112,23,112,27],[108,20,108,21],[109,20,109,21],[89,5,89,12],[89,21,89,22],[90,21,90,22],[91,21,91,22],[97,18,97,23],[99,4,99,12],[99,18,99,23],[113,5,113,6],[113,7,113,8],[113,10,113,16],[114,5,114,6],[114,7,114,8],[114,10,114,16],[110,5,111,6],[110,7,111,8],[110,10,111,16],[112,5,112,6],[112,7,112,8],[112,10,112,16],[115,5,115,6],[115,7,115,8],[115,10,115,16],[125,23,125,27],[125,21,125,22],[134,4,134,7],[123,5,123,6],[123,7,123,8],[123,10,123,16],[124,5,124,6],[124,7,124,8],[124,10,124,16],[121,5,121,6],[121,7,121,8],[121,10,121,16],[122,5,122,6],[122,7,122,8],[122,10,122,16],[116,5,116,6],[116,7,116,8],[116,10,116,16],[116,23,116,27],[117,23,117,27],[118,23,118,27],[125,5,125,6],[125,7,125,8],[119,5,119,6],[119,7,119,8],[119,10,119,16],[120,5,120,6],[120,7,120,8],[120,10,120,16],[117,5,117,6],[117,7,117,8],[117,10,117,16],[118,5,118,6],[118,7,118,8],[118,10,118,16],[119,23,119,27],[120,23,120,27],[121,23,121,27],[122,23,122,27],[123,23,123,27],[124,23,124,27],[110,23,111,27],[112,20,112,21],[113,20,113,21],[110,20,111,21],[114,20,114,21],[115,20,115,21],[116,20,116,21],[117,20,117,21],[118,20,118,21],[119,20,119,21],[120,20,120,21],[121,20,121,21],[122,20,122,21],[123,20,123,21],[124,20,124,21],[113,23,113,27],[114,23,114,27],[115,23,115,27]]}
[]
[null,null,null,{"$f":"valDistrName & \" (\"&valorg4code&\")\"","v":"OrgName (DIST)"}]
[]
[null,null,null,"FY21/FY22 ESSER II Fund (Fund Code 115) Budget Worksheet"]
[]
[null,null,null,"  Allocation ",null,null,null,{"$f":"IF(valallocSchedA=\"\", valAllocationESSRII, valallocSchedA)","v":"ESSER II Allocation"},null,null,null,null,null,null,null,null,null,"To determine FTE, divide total amount on budget line by total salary of staff on the line, then multiply by number of staff on that line. For example, 2 staff are paid $80,000 each from the grant. Their total salaries from all sources amount to $120,000 each. Divide 80,000 by 120,000 to get FTE per staff member (.67 FTE), then multiply by 2. The FTE for that line is 1.3 (round to the nearest tenth)."]
[]
[]
[]
[]
[]
[]
[]
[null,"Step 5.1\nAll Districts"]
[null,null,null,null,"Line Item Category: Select an option from the drop down menu.",null,null,null,null,null,null,null,null,null,"Amount",null,"Expenditures (whole numbers)",null,"Primary Function",null,null,"Comments"]
[]
[null,null,null,null,1,"ADMINISTRATOR SALARIES:",null,null,null,null,"# of staff","Total FTE","MTRS",null,null,null,"Amount",null,"Select from Drop Down List",null,null,"Budget Detail"]
[null,null,null,null,null,"Select One",null,null,null,null,null,null,null,false,{"$f":"IF(N18,Q18,0)","v":0},null,null,null,"Select One"]
[null,null,null,null,null,"Select One",null,null,null,null,null,null,null,false,{"$f":"IF(N19,Q19,0)","v":0},null,null,null,"Select One"]
[null,null,null,null,null,"Select One",null,null,null,null,null,null,null,false,{"$f":"IF(N20,Q20,0)","v":0},null,null,null,"Select One"]
[]
[null,null,null,null,"SUB-TOTAL",null,null,null,null,null,{"$f":"SUM(K18:K20)","v":0},{"$f":"SUM(L18:L20)","v":0},null,null,{"$f":"SUM(O18:O20)","v":0},null,{"$f":"SUM(Q18:Q20)","v":0}]
[null,null,null,null,2,"INSTRUCTIONAL/PROF STAFF:",null,null,null,null,"# of staff","Total FTE","MTRS",null,null,null,"Amount",null,"Select from Drop Down List",null,null,"Budget Detail"]
[null,null,null,null,null,"Select One",null,null,null,null,null,null,null,false,{"$f":"IF(N24, Q24,0)","v":0},null,null,null,"Select One"]
[null,null,null,null,null,"Select One",null,null,null,null,null,null,null,false,0,null,null,null,"Select One"]
[null,null,null,null,null,"Select One",null,null,null,null,null,null,null,false,0,null,null,null,"Select One"]
[null,null,null,null,null,"Select One",null,null,null,null,null,null,null,false,0,null,null,null,"Select One"]
[null,null,null,null,null,"Select One",null,null,null,null,null,null,null,false,0,null,null,null,"Select One"]
[null,null,null,null,null,"Select One",null,null,null,null,null,null,null,false,0,null,null,null,"Select One"]
[]
[null,null,null,null,"SUB-TOTAL",null,null,null,null,null,{"$f":"SUM(K24:K29)","v":0},{"$f":"SUM(L24:L29)","v":0},null,null,{"$f":"SUM(O24:O29)","v":0},null,{"$f":"SUM(Q24:Q29)","v":0}]
[null,null,null,null,3,"SUPPORT STAFF SALARIES:",null,null,null,null,"# of staff","Total FTE","MTRS",null,null,null,"Amount",null,"Select from Drop Down List",null,null,"Budget Detail"]
[null,null,null,null,null,"Select One",null,null,null,null,null,null,null,false,{"$f":"IF(N33, Q33,0)","v":0},null,null,null,"Select One"]
[null,null,null,null,null,"Select One",null,null,null,null,null,null,null,false,{"$f":"IF(N34, Q34,0)","v":0},null,null,null,"Select One"]
[null,null,null,null,null,"Select One",null,null,null,null,null,null,null,false,{"$f":"IF(N35, Q35,0)","v":0},null,null,null,"Select One"]
[]
[null,null,null,null,"SUB-TOTAL",null,null,null,null,null,{"$f":"SUM(K33:K35)","v":0},{"$f":"SUM(L33:L35)","v":0},null,null,{"$f":"SUM(O33:O35)","v":0},null,{"$f":"SUM(Q33:Q35)","v":0}]
[null,null,null,null,4,"STIPENDS:",null,null,null,"# of staff","Rate","Rate Type","MTRS",null,null,null,"Amount",null,"Select from Drop Down List",null,null,"Budget Detail"]
[null,null,null,null,null,"Select One",null,null,null,null,null,"select",null,false,{"$f":"IF(N39, Q39,0)","v":0},null,null,null,"Select One"]
[null,null,null,null,null,"Select One",null,null,null,null,null,"select",null,false,{"$f":"IF(N40, Q40,0)","v":0},null,null,null,"Select One"]
[null,null,null,null,null,"Select One",null,null,null,null,null,"select",null,false,{"$f":"IF(N41, Q41,0)","v":0},null,null,null,"Select One"]
[null,null,null,null,null,"Select One",null,null,null,null,null,"select",null,false,{"$f":"IF(N42, Q42,0)","v":0},null,null,null,"Select One"]
[]
[null,null,null,null,"SUB-TOTAL",null,null,null,null,null,null,null,null,null,{"$f":"SUM(O39:O42)","v":0},null,{"$f":"SUM(Q39:Q42)","v":0}]
[null,null,null,null,5,"FRINGE BENEFITS:",null,null,null,null,null,null,null,null,null,null,"Amount",null,"Brief Description",null,null,"Budget Detail"]
[null,null,null,null,null,"5a  MTRS (automatically calculated if MTRS box is checked above)  ",null,null,null,null,null,null,null,null,null,null,{"$f":"ROUND((SUM(O37,O44,O31,O22))*0.09,0)","v":0}]
[null,null,null,null,null,"5b  Other",null,null,null,null,null,null,null,null,null,null,{"$f":"SUM(Q48:Q50)","v":0}]
[null,null,null,null,null,"Health Insurance"]
[null,null,null,null,null,"Other Retirement Systems"]
[null,null,null,null,null,"Federal Insurance Contributions Act (FICA)"]
[]
[null,null,null,null,"SUB-TOTAL",null,null,null,null,null,null,null,null,null,null,null,{"$f":"SUM(Q46:Q47)","v":0}]
[null,null,null,null,6,"CONTRACTUAL SERVICES:",null,null,null,null,"Rate","Rate Type",null,null,null,null,"Amount",null,"Select from Drop Down List",null,null,"Budget Detail"]
[null,null,null,null,null,"Select One",null,null,null,null,null,"select",null,null,null,null,null,null,"Select One"]
[null,null,null,null,null,"Select One",null,null,null,null,null,"select",null,null,null,null,null,null,"Select One"]
[null,null,null,null,null,"Select One",null,null,null,null,null,"select",null,null,null,null,null,null,"Select One"]
[null,null,null,null,null,"Select One",null,null,null,null,null,"select",null,null,null,null,null,null,"Select One"]
[null,null,null,null,null,"Select One",null,null,null,null,null,"select",null,null,null,null,null,null,"Select One"]
[null,null,null,null,null,"Select One",null,null,null,null,null,"select",null,null,null,null,null,null,"Select One"]
[]
[null,null,null,null,"SUB-TOTAL",null,null,null,null,null,null,null,null,null,null,null,{"$f":"SUM(Q54:Q59)","v":0}]
[null,null,null,null,7,"SUPPLIES AND MATERIALS:",null,null,null,null,null,null,null,null,null,null,"Amount",null,"Select from Drop Down List",null,null,"Budget Detail"]
[null,null,null,null,null,"Select One",null,null,null,null,null,null,null,null,null,null,null,null,"Select One"]
[null,null,null,null,null,"Select One",null,null,null,null,null,null,null,null,null,null,null,null,"Select One"]
[null,null,null,null,null,"Select One",null,null,null,null,null,null,null,null,null,null,null,null,"Select One"]
[null,null,null,null,null,"Select One",null,null,null,null,null,null,null,null,null,null,null,null,"Select One"]
[]
[null,null,null,null,"SUB-TOTAL",null,null,null,null,null,null,null,null,null,null,null,{"$f":"SUM(Q63:Q66)","v":0}]
[null,null,null,null,8,"TRAVEL:  (mileage, conference registration, courses, hotels, etc.)",null,null,null,null,null,null,null,null,null,null,"Amount",null,"Select from Drop Down List",null,null,"Budget Detail"]
[null,null,null,null,null,"Select One",null,null,null,null,null,null,null,null,null,null,null,null,"Select One"]
[null,null,null,null,null,"Select One",null,null,null,null,null,null,null,null,null,null,null,null,"Select One"]
[null,null,null,null,null,"Select One",null,null,null,null,null,null,null,null,null,null,null,null,"Select One"]
[null,null,null,null,null,"Select One",null,null,null,null,null,null,null,null,null,null,null,null,"Select One"]
[]
[null,null,null,null,"SUB-TOTAL",null,null,null,null,null,null,null,null,null,null,null,{"$f":"SUM(Q70:Q73)","v":0}]
[null,null,null,null,9,"OTHER COSTS:",null,null,null,null,null,null,null,null,null,null,"Amount",null,"Select from Drop Down List",null,null,"Budget Detail"]
[null,null,null,null,null,"Select One",null,null,null,null,null,null,null,null,null,null,null,null,"Select One"]
[null,null,null,null,null,"Select One",null,null,null,null,null,null,null,null,null,null,null,null,"Select One"]
[null,null,null,null,null,"Select One",null,null,null,null,null,null,null,null,null,null,null,null,"Select One"]
[null,null,null,null,null,"Select One",null,null,null,null,null,null,null,null,null,null,null,null,"Select One"]
[null,null,null,null,null,"Select One",null,null,null,null,null,null,null,null,null,null,null,null,"Select One"]
[null,null,null,null,null,"Select One",null,null,null,null,null,null,null,null,null,null,null,null,"Select One"]
[]
[null,null,null,null,"SUB-TOTAL",null,null,null,null,null,null,null,null,null,null,null,{"$f":"SUM(Q77:Q82)","v":0}]
[null,null,null,null,null,null,null,null,"(a) rate (%)",null,"(b) eligible allocation less indirect",null,null,null,null,null,"Amount"]
[null,null,null,null,10,"INDIRECT COSTS ",null,null,null,null,{"$f":"IF(I86=\"\",\"\", (H6-IndExclERF)/(1+I86))","v":""}]
[null,null,null,null,null,null,null,null," (a x b)",null,{"$f":"IFERROR(ROUNDDOWN(K86*I86, 0),\"\")","v":""}]
[null,null,null,null,null,null,null,null,null,null,"   maximum allowed"]
[]
[null,null,null,null,11,"EQUIPMENT:\nItems costing $5,000+ per unit and having a useful life more than 1 year must be listed",null,null,null,null,null,null,null,null,null,null,"Amount",null,"Select from Drop Down List",null,null,"Budget Detail"]
[null,null,null,null,null,"individually in Step 9.2, below (these expenditures are not eligible for recovery of indirect cost).",null,null,null,null,null,null,null,null,null,null,{"$f":"IndEquipERF","v":0},null,"Select One"]
[null,null,null,null,null,"Once listed below, the total for Equipment will automatically populate in the gray cell to the right."]
[null,null,null,null,"SUB-TOTAL",null,null,null,null,null,null,null,null,null,null,null,{"$f":"SUM(Q91:Q91)","v":0}]
[]
[]
[null,null,null,null,null,null,null,null,null,null,null,null,"         TOTAL FUNDS REQUESTED "]
[]
[null,null,null,null,null,null,null,null,null,null,null,null,null,null,null,null,{"$f":"Q93+Q86+Q84+Q75+Q68+Q61+Q52+Q44+Q37+Q31+Q22","v":0}]
[]
[null,null,null,null,"                                    DISCREPANCY:  Difference between allocation and budgeted total, if any",null,null,null,null,null,null,null,null,null,null,null,{"$f":"IFERROR(IF(Q98<>valAllocationBudget,Q98-valAllocationBudget,\"\"),\"\")","v":""}]
[]
[]
[]
[null,"Step 5.2\nAll districts claiming indirect or equipment expenses",null,"Indirect Costs:  Major contracts and equipment"]
[null,null,null,"\nIndirect costs are those expenses of doing business that are not readily identified with a particular grant, contract, project fund or activity, but are necessary for the general operation of the organization and the conduct of the activities it performs.  Because these expenses are difficult to track with precision across all benefiting sources, federal grants allow use of a rate as a mechanism for fairly and conveniently apportioning indirect costs across all programs within the boundaries of sound administrative principles.  \nSee U.S. Department of Education, Indirect Cost Overview (https://www2.ed.gov/about/offices/list/ocfo/intro.html). \n\nFor this grant, indirect costs must be consistent with the rate established by DESE's Office of School Finance.  Note that districts are allowed to take less than the maximum allowable for indirect costs. The decision to recover indirect costs using these established rates is a local option.  If indirect costs are recovered, they shall be returned to the general fund of the city or town in  accordance with G.L. Chapter 44, Section 53.  In the case of regional schools, indirect costs shall be returned to the regional school general fund.  www.doe.mass.edu/Grants/essential.html\n\nIn calculating the indirect cost allowable for a particular grant, some expenditures are not included.  Two such exclusions include a portion of major subawards or subcontracts (those exceeding $25,000), and capital costs (equipment purchases of $5,000 or more).  \nSee, U. S. Department of Education, Cost Allocation Guide for State and Local Governments.  https://www2.ed.gov/about/offices/list/ocfo/fipao/guideigcwebsite.pdf\n\n                                        •  Contracts:  For major contracts exceeding $25,000, districts may recover indirect costs on only the first $25,000 of each contract.   The remainder of the contract amount is excluded from application of the indirect cost rate.  Note that for contracts \n                                            for professional services normally provided in-house, such as a speech pathologist or school nurse, this exclusion does not apply, even if the contract exceeds $25,000.  Of course, these expenses are also subject to all other grant requirements \n                                            (allowability, allocability, necessarily and reasonable, etc.) to be properly chargeable to the grant as well.\n\n                                        • Equipment:  All equipment costing $5,000 or more and having a useful life of more than 1 year is considered a capital expenditure and not eligible for recovery of indirect cost.  The total for equipment should match the total entered in Line 11, above.\n\nDirections:  List contracts exceeding $25,000 below (but not those for professional services normally provided in house) and the amount to be excluded will be calculated automatically.  The excluded amount will be added to the equipment total (Line 11) and subtracted from your district's allocation before calculating your district's maximum allowable indirect cost on Line 10."]
[]
[]
[null,null,null,null," "]
[null,null,null,null,null,"Contracts exceeding $25,000 (include in budget categories above in addition to listing individually here)",null,null,null,null,null,null,null,null,null,null,null,"  Equipment:  (from Line 11, above)\n\n",null,null,"Equipment:  (from Line 11, above)"]
[null,null,null,null,null,null,null,null,null,null,null,null,null,null,null,null,null,"    List Items costing $5,000+ per unit and having a useful life of more than 1 year.  ",null,null,"List Items costing $5,000+ per unit and having a useful life of more than 1 year.  "]
[null,null,null,null,null,"Amount of contract:",null,"Amount excluded from indirect cost:",null,null,"  Description:",null,null,null,null,null,null,null,null,null,"  Description:",null,null,"Amount:"]
[]
[null,null,null,null,null,null,null,{"$f":"IF((F113-25000)>0, (F113-25000), \"\")","v":""}]
[null,null,null,null,null,null,null,{"$f":"IF((F114-25000)>0, (F114-25000), \"\")","v":""}]
[null,null,null,null,null,null,null,""]
[null,null,null,null,null,null,null,""]
[null,null,null,null,null,null,null,""]
[null,null,null,null,null,null,null,""]
[null,null,null,null,null,null,null,""]
[null,null,null,null,null,null,null,""]
[null,null,null,null,null,null,null,""]
[null,null,null,null,null,null,null,""]
[null,null,null,null,null,null,null,""]
[null,null,null,null,null,null,null,""]
[null,null,null,null,null,null,null,"",null,null,null,null,null,null,null,null,null,null,null,null,null,null,null,null,null,null,null,null,null,null,null,{"$f":"IndConERF+IndEquipERF","v":0}]
[null,null,null,null,"SUB-TOTAL",{"$f":"SUM(F113:G125)","v":0},null,{"$f":"SUM(H113:I125)","v":0},null,null,null,null,null,null,null,null,null,null,null,null,null,"SUB-TOTAL",null,{"$f":"SUM(X113:X125)","v":0}]

{"sheet":"Schedule A","index":6,"n_rows":35,"n_cols":13,"rows_kept":35,"cut":false,"hidden":false,"merged":[[15,2,16,2],[15,3,16,5],[15,6,16,11],[15,12,16,12],[17,2,18,2],[17,3,18,5],[17,12,18,12],[7,9,7,12],[8,2,8,12],[9,2,9,12],[11,2,11,12],[13,2,14,2],[13,3,14,12],[26,2,26,6],[26,7,26,9],[26,10,26,12],[22,7,22,9],[22,10,22,12],[23,2,23,6],[23,7,23,9],[23,10,23,12],[20,7,21,9],[20,10,21,12],[22,2,22,6],[25,7,25,9],[25,10,25,12],[20,2,21,6],[31,7,32,9],[31,10,32,12],[32,2,32,6],[34,2,35,12],[30,2,30,6],[30,7,30,9],[30,10,30,12],[29,2,29,6],[29,7,29,9],[29,10,29,12],[1,3,1,11],[2,3,5,11],[27,2,27,6],[27,7,27,9],[27,10,27,12],[28,2,28,6],[28,7,28,9],[28,10,28,12],[24,2,24,6],[24,7,24,9],[24,10,24,12],[25,2,25,6],[17,6,18,11]]}
[]
[null,null,null,"Instructions:\n\n "]
[null,null,null," • Fill out and print a copy of Schedule A if you are lead district for a consortium and funds are assigned from other grant recipients to your district (agency).\n\nAttach a pdf of the fully executed Schedule A form to the Lead district's EdGrants submission for each grant for which there are Schedule A assignments of funds. \n"]
[]
[]
[]
[]
[]
[null,null,"MASSACHUSETTS DEPARTMENT OF ELEMENTARY AND SECONDARY EDUCATION"]
[null,null,"STANDARD APPLICATION FOR PROGRAM GRANTS"]
[]
[null,null,"FY21/FY22 SCHEDULE A - Assignment Schedule"]
[]
[null,null,1,"Schedule A is to be completed if the applicant agency operates and administers a grant project using funds from more than one grant recipient.  Lead district submits with EdGrants submission."]
[]
[null,null,2,"Agency operating and administering the project:  ",null,null,{"$f":"valDistrName","v":"OrgName"},null,null,null,null,null,{"$f":"OrgCode","v":"DIST"}]
[]
[null,null,3,"Name of grant program/\nFund Code:",null,null,"ESSER II Fund",null,null,null,null,null,"FC 115"]
[]
[]
[null,null,"Name of Participating Agency",null,null,null,null,"Amount of \nAssigned Funds",null,null,"* Authorized Signature"]
[]
[]
[]
[]
[]
[]
[]
[]
[]
[]
[null,null,null,null,null,null,null,{"$f":"SUM(H23:J31)","v":0}]
[null,null,"Total of Assigned Funds"]
[]
[null,null,"*I/We assign the identified funds to the project described in the accompanying grant application.  The indicated agency is authorized to receive and disburse funds for the purpose of operating the project."]

{"sheet":"For DESE Use Only","index":7,"n_rows":4,"n_cols":44,"rows_kept":4,"cut":false,"hidden":false,"merged":[]}
[null,"Administrator Salaries","Administrator Salaries","Administrator Salaries","Instructional/Professional Staff","Instructional/Professional Staff","Instructional/Professional Staff","Instructional/Professional Staff","Instructional/Professional Staff","Instructional/Professional Staff","Support Staff Salaries","Support Staff Salaries","Support Staff Salaries","Stipends","Stipends","Stipends","Stipends","MTRS","Other Fringe Total","Health Ins","Other Retirement Systems","FICA","Contractual Services","Contractual Services","Contractual Services","Contractual Services","Contractual Services","Contractual Services","Supplies and Materials","Supplies and Materials","Supplies and Materials","Supplies and Materials","Travel","Travel","Travel","Travel","Other Costs","Other Costs","Other Costs","Other Costs","Other Costs","Other Costs","Indirect Costs","Equipment"]
["Expenditures",{"$f":"'5. Budget'!$Q18","v":0},{"$f":"'5. Budget'!$Q19","v":0},{"$f":"'5. Budget'!$Q20","v":0},{"$f":"'5. Budget'!$Q24","v":0},{"$f":"'5. Budget'!$Q25","v":0},{"$f":"'5. Budget'!$Q26","v":0},{"$f":"'5. Budget'!$Q27","v":0},{"$f":"'5. Budget'!$Q28","v":0},{"$f":"'5. Budget'!$Q29","v":0},{"$f":"'5. Budget'!$Q33","v":0},{"$f":"'5. Budget'!$Q35","v":0},{"$f":"'5. Budget'!$Q34","v":0},{"$f":"'5. Budget'!$Q39","v":0},{"$f":"'5. Budget'!$Q40","v":0},{"$f":"'5. Budget'!$Q41","v":0},{"$f":"'5. Budget'!$Q42","v":0},{"$f":"'5. Budget'!$Q46","v":0},{"$f":"'5. Budget'!$Q47","v":0},{"$f":"'5. Budget'!$Q48","v":0},{"$f":"'5. Budget'!$Q49","v":0},{"$f":"'5. Budget'!$Q50","v":0},{"$f":"'5. Budget'!$Q54","v":0},{"$f":"'5. Budget'!$Q55","v":0},{"$f":"'5. Budget'!$Q56","v":0},{"$f":"'5. Budget'!$Q57","v":0},{"$f":"'5. Budget'!$Q58","v":0},{"$f":"'5. Budget'!$Q59","v":0},{"$f":"'5. Budget'!$Q63","v":0},{"$f":"'5. Budget'!$Q64","v":0},{"$f":"'5. Budget'!$Q65","v":0},{"$f":"'5. Budget'!$Q66","v":0},{"$f":"'5. Budget'!$Q70","v":0},{"$f":"'5. Budget'!$Q71","v":0},{"$f":"'5. Budget'!$Q72","v":0},{"$f":"'5. Budget'!$Q73","v":0},{"$f":"'5. Budget'!$Q77","v":0},{"$f":"'5. Budget'!$Q78","v":0},{"$f":"'5. Budget'!$Q79","v":0},{"$f":"'5. Budget'!$Q80","v":0},{"$f":"'5. Budget'!$Q81","v":0},{"$f":"'5. Budget'!$Q82","v":0},{"$f":"'5. Budget'!$Q86","v":0},{"$f":"'5. Budget'!$Q91","v":0}]
["Primary Function",{"$f":"'5. Budget'!$S18","v":"Select One"},{"$f":"'5. Budget'!$S19","v":"Select One"},{"$f":"'5. Budget'!$S20","v":"Select One"},{"$f":"'5. Budget'!$S24","v":"Select One"},{"$f":"'5. Budget'!$S25","v":"Select One"},{"$f":"'5. Budget'!$S26","v":"Select One"},{"$f":"'5. Budget'!$S27","v":"Select One"},{"$f":"'5. Budget'!$S28","v":"Select One"},{"$f":"'5. Budget'!$S29","v":"Select One"},{"$f":"'5. Budget'!$S33","v":"Select One"},{"$f":"'5. Budget'!$S34","v":"Select One"},{"$f":"'5. Budget'!$S35","v":"Select One"},{"$f":"'5. Budget'!$S39","v":"Select One"},{"$f":"'5. Budget'!$S40","v":"Select One"},{"$f":"'5. Budget'!$S41","v":"Select One"},{"$f":"'5. Budget'!$S42","v":"Select One"},{"$f":"'5. Budget'!$S46","v":0},{"$f":"'5. Budget'!$S47","v":0},{"$f":"'5. Budget'!$S48","v":0},{"$f":"'5. Budget'!$S49","v":0},{"$f":"'5. Budget'!$S50","v":0},{"$f":"'5. Budget'!$S54","v":"Select One"},{"$f":"'5. Budget'!$S55","v":"Select One"},{"$f":"'5. Budget'!$S56","v":"Select One"},{"$f":"'5. Budget'!$S57","v":"Select One"},{"$f":"'5. Budget'!$S58","v":"Select One"},{"$f":"'5. Budget'!$S59","v":"Select One"},{"$f":"'5. Budget'!$S63","v":"Select One"},{"$f":"'5. Budget'!$S64","v":"Select One"},{"$f":"'5. Budget'!$S65","v":"Select One"},{"$f":"'5. Budget'!$S66","v":"Select One"},{"$f":"'5. Budget'!$S70","v":"Select One"},{"$f":"'5. Budget'!$S71","v":"Select One"},{"$f":"'5. Budget'!$S72","v":"Select One"},{"$f":"'5. Budget'!$S73","v":"Select One"},{"$f":"'5. Budget'!$S77","v":"Select One"},{"$f":"'5. Budget'!$S78","v":"Select One"},{"$f":"'5. Budget'!$S79","v":"Select One"},{"$f":"'5. Budget'!$S80","v":"Select One"},{"$f":"'5. Budget'!$S81","v":"Select One"},{"$f":"'5. Budget'!$S82","v":"Select One"},"N/A",{"$f":"'5. Budget'!$S91","v":"Select One"}]
["Budget Details",{"$f":"'5. Budget'!$V18","v":0},{"$f":"'5. Budget'!$V19","v":0},{"$f":"'5. Budget'!$V20","v":0},{"$f":"'5. Budget'!$V24","v":0},{"$f":"'5. Budget'!$V25","v":0},{"$f":"'5. Budget'!$V26","v":0},{"$f":"'5. Budget'!$V27","v":0},{"$f":"'5. Budget'!$V28","v":0},{"$f":"'5. Budget'!$V29","v":0},{"$f":"'5. Budget'!$V33","v":0},{"$f":"'5. Budget'!$V34","v":0},{"$f":"'5. Budget'!$V35","v":0},{"$f":"'5. Budget'!$V39","v":0},{"$f":"'5. Budget'!$V40","v":0},{"$f":"'5. Budget'!$V1","v":0},{"$f":"'5. Budget'!$V42","v":0},{"$f":"'5. Budget'!$V46","v":0},{"$f":"'5. Budget'!$V47","v":0},{"$f":"'5. Budget'!$V48","v":0},{"$f":"'5. Budget'!$V49","v":0},{"$f":"'5. Budget'!$V50","v":0},{"$f":"'5. Budget'!$V54","v":0},{"$f":"'5. Budget'!$V55","v":0},{"$f":"'5. Budget'!$V56","v":0},{"$f":"'5. Budget'!$V57","v":0},{"$f":"'5. Budget'!$V58","v":0},{"$f":"'5. Budget'!$V59","v":0},{"$f":"'5. Budget'!$V63","v":0},{"$f":"'5. Budget'!$V64","v":0},{"$f":"'5. Budget'!$V65","v":0},{"$f":"'5. Budget'!$V66","v":0},{"$f":"'5. Budget'!$V70","v":0},{"$f":"'5. Budget'!$V71","v":0},{"$f":"'5. Budget'!$V72","v":0},{"$f":"'5. Budget'!$V73","v":0},{"$f":"'5. Budget'!$V77","v":0},{"$f":"'5. Budget'!$V78","v":0},{"$f":"'5. Budget'!$V79","v":0},{"$f":"'5. Budget'!$V80","v":0},{"$f":"'5. Budget'!$V81","v":0},{"$f":"'5. Budget'!$V82","v":0},"N/A",{"$f":"'5. Budget'!$V91","v":0}]

{"sheet":"Dropdowns","index":8,"n_rows":129,"n_cols":4,"rows_kept":129,"cut":false,"hidden":true,"merged":[]}
["Budget Worksheet Dropdowns","YesNo","Rate","Assurances"]
["Primary Functions","Select One","select","Select One"]
["Select One","Yes","per hour","Charter School"]
["Activities under ESSA, IDEA, Perkins or AEFLA","No","per day","Vocational School"]
["Coordinating activities with public health agencies",null,"flat","Virtual School"]
["Providing school leadership with resources for schools","YesNoNA",null,"No Private Schools"]
["Meeting unique needs of special student populations","Select One"]
["Activities addressing learning loss ","Yes"]
["Improving district preparedness and response to COVID-19","No"]
["Training and PD on sanitation and disease containment","N/A"]
["Supplies to sanitize schools and district facilities"]
["School facility repairs and improvements to reduce health risks","Fiscal Year"]
["Activities related to improving indoor air quality in school facilities","Select One"]
["Coordinating systems for students during long-term closures","FY2021"]
["Acquiring education technology for students to facilitate remote learning","FY2022"]
["Providing school leadership with resources for schools"]
["Providing mental health services and supports","YesOnly"]
["Planning/implementing summer learning and/or afterschool programs","Select "]
["Other activities re: maintaining district activities and continuing staff employment","Yes"]
[]
[]
[]
[]
[]
[]
[]
[]
[]
[]
[]
[]
[]
[]
[]
[]
[]
[]
[]
[]
[]
[]
[]
[]
[]
[]
[]
[]
[]
[]
[]
[]
[]
[]
[]
[]
[]
[]
[]
[]
["Budget Categories"]
["Administrator Salaries"]
["Select One"]
["Grant Program Manager/Coordinator "]
["Other "]
["InstructionalProf Staff Salaries"]
["Select One"]
["Classroom Teachers  "]
["Instructional Coaches "]
["Certified Specialist Teachers (providing individualized instruction)  "]
["Instructional Coordinators and Team Leaders  "]
["Medical / Therapeutic Services "]
["Librarians and Media Center Directors "]
["Professional Development Directors/Coordinators  "]
["Guidance or School Adjustment Counselors, Social Workers  "]
["Psychological Service Providers "]
["School Physicians and School Nurses  "]
["Other  "]
["Support Staff Salaries"]
["Select One"]
["Non-Clerical Paraprofessionals/Instructional Assistants "]
["Secretary/Bookkeeper/Clerical Support  "]
["Parent Liaisons"]
["Other "]
["Stipends"]
["Select One"]
["Teacher/ Instructional Staff Professional Days"]
["Administrators "]
["Other "]
["Support Staff"]
["Travel"]
["Select One"]
["Grant Program Manager/Coordinator (supervisory)"]
["Certified Classroom Teachers (providing group instruction) "]
["Certified Specialist Teachers (providing individualized instruction)"]
["Non-Clerical Paraprofessionals/Instructional Assistants"]
["Other "]
["Contractual Services"]
["Select One"]
["Instructional Services "]
["Consultants/Professional  Development for Teachers & Support Staff "]
["Substitutes (long and/or short term)"]
["Non-Clerical Paraprofessionals/Instructional Assistants"]
["Secretary/Bookkeeper/Clerical Support "]
["Contracted Service Providers -- Private School Services "]
["Contracted Services Providers -- Other Student Services "]
["Other "]
["Supplies and Materials"]
["Select One"]
["Textbooks and Related Software/Media/Materials "]
["Instructional Technology"]
["Other Instructional Materials (non-testing/assessment)"]
["Testing and Assessment Materials"]
["General Classroom Supplies "]
["Office Supplies  "]
["Other "]
["Other costs"]
["Select One"]
["Memberships/Subscriptions"]
["Advertising  "]
["Student Transportation Services "]
["Rental/Lease of Equipment"]
["Maintenance of Equipment"]
["Maintenance of Technology "]
["Tuition to Non-Public Schools "]
["Tuition to Out-of-State Schools "]
["Tuition to Collaboratives"]
["Rental Lease of Buildings  "]
["Utility Services/ Telephone "]
["Other  "]

{"sheet":"DataLookupValues","index":9,"n_rows":22,"n_cols":6,"rows_kept":22,"cut":false,"hidden":true,"merged":[]}
["Workbook Information"]
[]
[]
[]
["District Information"]
["District value",1,null,null,"Liasons"]
["District Name:",{"$f":"VLOOKUP(valDistr,dataDistr,3,FALSE)","v":"OrgName"},"district code",{"$f":"LEFT(VLOOKUP(valDistr,dataDistr,2,FALSE),4)","v":"DIST"},"Name",{"$f":"VLOOKUP(valDistr,dataDistr,12,FALSE)","v":"Liaison's Name"}]
["Address1",{"$f":"VLOOKUP(valDistr,dataDistr,7,FALSE)","v":"ADDR 1"},null,null,"Phone",{"$f":"VLOOKUP(valDistr,dataDistr,13,FALSE)","v":"Liaison's Number"}]
["Address2",{"$f":"IF(VLOOKUP(valDistr,dataDistr,8,FALSE)=0,\"\",VLOOKUP(valDistr,dataDistr,8,FALSE))","v":"ADDR 2"},null,null,"Email",{"$f":"VLOOKUP(valDistr,dataDistr,14,FALSE)","v":"Liaison's Email"}]
["City, State, ZIP",{"$f":"VLOOKUP(valDistr,dataDistr,9,FALSE)&\", \"&VLOOKUP(valDistr,dataDistr,10,FALSE)&\" \"&VLOOKUP(valDistr,dataDistr,11,FALSE)","v":"City, State Zip"}]
["District Enrollment",{"$f":"VLOOKUP(valDistr,dataDistr,17,FALSE)","v":"ESSER II Allocation"},"EL Enrollment",{"$f":"VLOOKUP(valDistr,dataDistr,16,FALSE)","v":"March 2019 nElCOUNT_sum"}]
["Low Inc Methods TI"]
["SELECT ONE",null,"TitleI Status"]
["Oct Eco Dis",null,1]
["Oct Eco Dis x 1.6",null,2,"SW"]
["March Eco Dis",null,3,"TA"]
["March Eco Dis x 1.6",null,4,"NT"]
["Other ",null,5,"CL"]
[]
["Homeless Enrollment",{"$f":"VLOOKUP(valDistr,dataDistr,18,FALSE)","v":"HOMELESS, K-12"}]
["SLE Gaps",{"$f":"VLOOKUP(valDistr,dataDistr,19,FALSE)","v":"SLE Gaps?"}]
["FY20 district Enrollment",{"$f":"VLOOKUP(valDistr,dataDistr,21,FALSE)","v":"March2020Enrolled"}]

{"sheet":"LiaisonList","index":10,"n_rows":8,"n_cols":3,"rows_kept":8,"cut":false,"hidden":true,"merged":[]}
["Aneesh Sahni","781-338-3532","aneesh.sahni@doe.mass.edu"]
["Alex Lilley","781-338-6212","alilley@doe.mass.edu"]
["Beth O'Connell","781-338-3132","EO'Connell@doe.mass.edu"]
["Deb Walker","781-338-3127","djwalker@doe.mass.edu"]
["Ellie Rounds-Bloom","781-338-3128","erounds-bloom@doe.mass.edu"]
["Julia Foodman","781-338-3577","jfoodman@doe.mass.edu"]
["Russ Fleming","781-338-6529","RFleming@doe.mass.edu"]
["Sue Mazzarella","781-338-3587","smazzarella@doe.mass.edu"]

{"sheet":"dataDistrictList","index":11,"n_rows":400,"n_cols":21,"rows_kept":400,"cut":false,"hidden":true,"merged":[]}
[1,"DISTRICT","OrgName","Org Type","Function","Contact Name","ADDR 1","ADDR 2","City","State","Zip","Liaison's Name","Liaison's Number","Liaison's Email",null,"March 2019 nElCOUNT_sum","ESSER II Allocation","HOMELESS, K-12","SLE Gaps?","FY20 LowInc","March2020Enrolled"]
[2,"04450000","Abby Kelley Foster Charter Public (District)","Charter District","Charter School Leader","Brian Haas","10 New Bond Street","","Worcester","MA","01606","Colleen Holforty","781-338-3522","colleen.e.holforty@mass.gov",null,140,1384268,13,"No","837",1425]
[3,"00010000","Abington","Public School District","Superintendent","Peter Schafer","1071 Washington St.","","Abington","MA","02351","Alex Lilley","781-338-6212","alex.j.lilley@mass.gov",null,100,597630,6,"Yes","154",2073]
[4,"04120000","Academy Of the Pacific Rim Charter Public (District)","Charter District","Charter School Leader","Spencer Blasdale","1 Westinghouse Plaza Bldg B","","Hyde Park","MA","02136","Colleen Holforty","781-338-3522","colleen.e.holforty@mass.gov",null,68,1003908,3,"No","314",538]
[5,"06000000","Acton-Boxborough","Public School District","Superintendent","Peter Light","15 Charter Rd","","Acton","MA","01720","Sue Mazzarella","781-338-3587","susan.mazzarella@mass.gov",null,243,418600,12,"Yes","127",5404]
[6,"00030000","Acushnet","Public School District","Superintendent","Paula Bailey","708 Middle Road","Suite 1","Acushnet","MA","02743","Colleen Holforty","781-338-3522","colleen.e.holforty@mass.gov",null,10,304882,8,"Yes","192",970]
[7,"04300000","Advanced Math and Science Academy Charter (District)","Charter District","Charter School Leader","Ellen Linzey","201 Forest Street","","Marlborough","MA","01752","Sue Mazzarella","781-338-3587","susan.mazzarella@mass.gov",null,42,85841,0,"Yes","101",965]
[8,"00050000","Agawam","Public School District","Superintendent","Steven Lemanski","1305 Springfield St","Suite 1","Feeding Hills","MA","01030","Nancy Labrie","781-338-3536","nancy.h.labrie@mass.gov",null,185,2064360,0,"Yes","685",3540]
[9,"04090000","Alma del Mar Charter School (District)","Charter District","Charter School Leader","Will Gardner","515 Belleville Ave","","New Bedford","MA","02746","Alex Chiu","781-338-3586","alexandria.w.chiu@mass.gov",null,106,1401451,0,"No","435",644]
[10,"00070000","Amesbury","Public School District","Superintendent","Jared Fulgoni","5 Highland Street","","Amesbury","MA","01913","Russ Fleming","781-338-6259","russellw.fleming@mass.gov",null,31,835787,43,"Yes","308",1985]
[11,"00080000","Amherst","Public School District","Superintendent","Michael Morris","170 Chestnut Street","","Amherst","MA","01002","Ellie Rounds-Bloom","781-338-3128","eleanor.rounds@mass.gov",null,170,676016,39,"Yes","700",1062]
[12,"06050000","Amherst-Pelham","Public School District","Superintendent","Michael Morris","170 Chestnut Street","","Amherst","MA","01002","Ellie Rounds-Bloom","781-338-3128","eleanor.rounds@mass.gov",null,84,747510,0,"Yes","0",1330]
[13,"00090000","Andover","Public School District","Superintendent","Sheldon Berman","36 Bartlet Street","","Andover","MA","01810","Beth O'Connell","781-338-3132","elizabeth.a.o'connell@mass.gov",null,231,568208,9,"Yes","466",5806]
[14,"35090000","Argosy Collegiate Charter School (District)","Charter District","Charter School Leader","Kristen Pavao","263 Hamlet Street","","Fall River","MA","02724","Julia Foodman","781-338-3577","julia.b.foodman@mass.gov",null,138,855539,0,"No","408",500]
[15,"00100000","Arlington","Public School District","Superintendent","Kathleen Bodie","869 Massachusetts Avenue","","Arlington","MA","02476","Julia Foodman","781-338-3577","julia.b.foodman@mass.gov",null,275,514420,10,"Yes","223",6029]
[16,"06100000","Ashburnham-Westminster","Public School District","Superintendent","Sandra Rehler","11 Oakmont Drive","","Ashburnham","MA","01430","Colleen Holforty","781-338-3522","colleen.e.holforty@mass.gov",null,32,526728,6,"Yes","133",2323]
[17,"00140000","Ashland","Public School District","Superintendent","James Adams","87 West Union Street","","Ashland","MA","01721","Alex Lilley","781-338-6212","alex.j.lilley@mass.gov",null,162,332353,14,"Yes","443",2802]
[18,"08010000","Assabet Valley Regional Vocational Technical","Public School District","Superintendent","Ernest Houle","215 Fitchburg Street","","Marlborough","MA","01752","Ellie Rounds-Bloom","781-338-3128","eleanor.rounds@mass.gov",null,33,498792,0,"Yes","0",1123]
[19,"06150000","Athol-Royalston","Public School District","Superintendent","Darcy Fernandes","1062 Pleasant Street","","Athol","MA","01331","Nancy Labrie","781-338-3536","nancy.h.labrie@mass.gov",null,26,1477760,0,"Yes","1082",1468]
[20,"04910000","Atlantis Charter (District)","Charter District","Charter School Leader","Robert Beatty","991 Jefferson St","","Fall River","MA","02721","Alex Chiu","781-338-3586","alexandria.w.chiu@mass.gov",null,140,1476540,9,"Yes","866",1304]
[21,"00160000","Attleboro","Public School District","Superintendent","David Sawyer","100 Rathbun Willard Drive","","Attleboro","MA","02703","Alex Chiu","781-338-3586","alexandria.w.chiu@mass.gov",null,356,2797011,0,"Yes","1099",5840]
[22,"00170000","Auburn","Public School District","Superintendent","Maryellen Brunelle","5 West Street","","Auburn","MA","01501","Colleen Holforty","781-338-3522","colleen.e.holforty@mass.gov",null,91,614860,7,"Yes","480",2538]
[23,"00180000","Avon","Public School District","Superintendent","Christine Godino","1 Patrick Clark Drive","","Avon","MA","02322","Nancy Labrie","781-338-3536","nancy.h.labrie@mass.gov",null,24,228283,12,"Yes","171",704]
[24,"06160000","Ayer Shirley School District","Public School District","Superintendent","Mary Malone","115 Washington Street","","Ayer","MA","01432","Russ Fleming","781-338-6259","russellw.fleming@mass.gov",null,64,1780738,0,"Yes","641",1629]
[25,"00200000","Barnstable","Public School District","Superintendent","Meg Mayo-Brown","P O Box 955","","Hyannis","MA","02601","Alex Chiu","781-338-3586","alexandria.w.chiu@mass.gov",null,502,2707928,79,"Yes","645",4946]
[26,"35020000","Baystate Academy Charter Public School (District)","Charter District","Charter School Leader","Timothy Sneed","2001 Roosevelt Avenue","","Springfield","MA","01104","Beth O'Connell","781-338-3132","elizabeth.a.o'connell@mass.gov",null,61,1381684,0,"Yes","476",463]
[27,"00230000","Bedford","Public School District","Superintendent","Jonathan Sills","97 McMahon Road","","Bedford","MA","01730","Julia Foodman","781-338-3577","julia.b.foodman@mass.gov",null,155,181614,1,"Yes","266",2666]
[28,"00240000","Belchertown","Public School District","Superintendent","Brian Cameron","PO Box 841","","Belchertown","MA","01007","Beth O'Connell","781-338-3132","elizabeth.a.o'connell@mass.gov",null,22,567806,11,"Yes","191",2206]
[29,"00250000","Bellingham","Public School District","Superintendent","Peter Marano","4 Mechanic Street","","Bellingham","MA","02019","Sue Mazzarella","781-338-3587","susan.mazzarella@mass.gov",null,46,603809,74,"Yes","230",2065]
[30,"00260000","Belmont","Public School District","Superintendent","John Phelan","644 Pleasant Street","","Belmont","MA","02478","Alex Chiu","781-338-3586","alexandria.w.chiu@mass.gov",null,357,456001,0,"Yes","133",4740]
[31,"04200000","Benjamin Banneker Charter Public (District)","Charter District","Charter School Leader","Sherley Bretous-Carre","21 Notre Dame Avenue","","Cambridge","MA","02140","Ellie Rounds-Bloom","781-338-3128","eleanor.rounds@mass.gov",null,20,481438,0,"Yes","232",312]
[32,"04470000","Benjamin Franklin Classical Charter Public (District)","Charter District","Charter School Leader","Heather Zolnowski","500 Financial Park","","Franklin","MA","02038","Russ Fleming","781-338-6259","russellw.fleming@mass.gov",null,26,85841,0,"Yes","56",708]
[33,"00270000","Berkley","Public School District","Superintendent","Thomas Lynch","21 North Main Street","","Berkley","MA","02779","Russ Fleming","781-338-6259","russellw.fleming@mass.gov",null,6,293474,0,"Yes","123",859]
[34,"04140000","Berkshire Arts and Technology Charter Public (District)","Charter District","Charter School Leader","James White","1 Commercial Pl","PO Box 267","Adams","MA","01220","Russ Fleming","781-338-6259","russellw.fleming@mass.gov",null,3,426148,0,"Yes","250",356]
[35,"06180000","Berkshire Hills","Public School District","Superintendent","Peter Dillon","50 Main Street","PO Box 617","Stockbridge","MA","01262","Alex Chiu","781-338-3586","alexandria.w.chiu@mass.gov",null,40,559315,0,"Yes","349",1183]
[36,"06200000","Berlin-Boylston","Public School District","Superintendent","Jeffrey Zanghi","215 Main Street","","Boylston","MA","01505","Beth O'Connell","781-338-3132","elizabeth.a.o'connell@mass.gov",null,9,127408,0,"Yes","184",1017]
[37,"00300000","Beverly","Public School District","Superintendent","Suzanne Charochak","70 Balch St.","","Beverly","MA","01915","Nancy Labrie","781-338-3536","nancy.h.labrie@mass.gov",null,164,2119947,0,"Yes","669",4660]
[38,"00310000","Billerica","Public School District","Superintendent","Timothy Piwowar","365 Boston Rd","","Billerica","MA","01821","Russ Fleming","781-338-6259","russellw.fleming@mass.gov",null,69,796407,16,"Yes","590",4668]
[39,"08050000","Blackstone Valley Regional Vocational Technical","Public School District","Superintendent","Michael Fitzpatrick","65 Pleasant Street","","Upton","MA","01568","Alex Chiu","781-338-3586","alexandria.w.chiu@mass.gov",null,2,114530,0,"No","187",1216]
[40,"06220000","Blackstone-Millville","Public School District","Superintendent","Jason Defalco","175 Lincoln Street","","Blackstone","MA","01504","Sue Mazzarella","781-338-3587","susan.mazzarella@mass.gov",null,39,549875,1,"Yes","317",1603]
[41,"08060000","Blue Hills Regional Vocational Technical","Public School District","Superintendent","Jill Rossetti","800 Randolph Street","","Canton","MA","02021","Alex Chiu","781-338-3586","alexandria.w.chiu@mass.gov",null,6,383477,8,"No","307",841]
[42,"00350000","Boston","Public School District","Superintendent","Brenda Cassellius","2300 Washington Street","","Roxbury","MA","02119","Julia Foodman","781-338-3577","julia.b.foodman@mass.gov",null,15262,122967457,4293,"Yes","36931",47684]
[43,"04490000","Boston Collegiate Charter (District)","Charter District","Charter School Leader","Shannah Varon","11 Mayhew Street","","Dorchester","MA","02125","Julia Foodman","781-338-3577","julia.b.foodman@mass.gov",null,29,971351,3,"No","333",700]
[44,"04240000","Boston Day and Evening Academy Charter (District)","Charter District","Charter School Leader","Alison Hramiec","20 Kearsarge Ave","","Roxbury","MA","02119","Colleen Holforty","781-338-3522","colleen.e.holforty@mass.gov",null,46,1196164,92,"No","349",379]
[45,"04110000","Boston Green Academy Horace Mann Charter School (District)","Charter District","Charter School Leader","Matthew Holzer","20 Warren St.","","Brighton","MA","02135","Ellie Rounds-Bloom","781-338-3128","eleanor.rounds@mass.gov",null,68,1433423,0,"No","424",478]
[46,"04160000","Boston Preparatory Charter Public (District)","Charter District","Charter School Leader","Sharon Liszanckie","885 River Street","","Hyde Park","MA","02136","Julia Foodman","781-338-3577","julia.b.foodman@mass.gov",null,94,1846318,0,"No","0",574]
[47,"04810000","Boston Renaissance Charter Public (District)","Charter District","Charter School Leader","Alexandra Banhares-Buckmire","1415 Hyde Park Ave","","Hyde Park","MA","02136","Alex Lilley","781-338-6212","alex.j.lilley@mass.gov",null,109,2290570,8,"No","651",825]
[48,"00360000","Bourne","Public School District","Superintendent","Kerri Quinlan-Zhou","36 Sandwich Rd","","Bourne","MA","02532","Beth O'Connell","781-338-3132","elizabeth.a.o'connell@mass.gov",null,14,854554,51,"Yes","334",1841]
[49,"00380000","Boxford","Public School District","Superintendent","Scott Morrison","28 Middleton Road","","Boxford","MA","01921","Russ Fleming","781-338-6259","russellw.fleming@mass.gov",null,6,318391,0,"Yes","53",708]
[50,"00400000","Braintree","Public School District","Superintendent","Frank Hackett","348 Pond Street","","Braintree","MA","02184","Ellie Rounds-Bloom","781-338-3128","eleanor.rounds@mass.gov",null,305,1548633,0,"Yes","313",5758]
[51,"00410000","Brewster","Public School District","Superintendent","Thomas Conrad","78 Eldredge Pkwy","","Orleans","MA","02653","Julia Foodman","781-338-3577","julia.b.foodman@mass.gov",null,10,268774,6,"No",{"$error":"#N/A"},433]
[52,"04170000","Bridge Boston Charter School (District)","Charter District","Charter School Leader","Craig Martin","435 Warren St.","","Roxbury","MA","02119","Beth O'Connell","781-338-3132","elizabeth.a.o'connell@mass.gov",null,77,925652,10,"No","296",304]
[53,"06250000","Bridgewater-Raynham","Public School District","Superintendent","Derek Swenson","166 Mt. Prospect Street","","Bridgewater","MA","02324","Alex Lilley","781-338-6212","alex.j.lilley@mass.gov",null,113,855172,26,"Yes","520",5292]
[54,"00430000","Brimfield","Public School District","Superintendent","Erin Nosek","320A Brookfield Rd","","Fiskdale","MA","01518","Russ Fleming","781-338-6259","russellw.fleming@mass.gov",null,2,181567,0,"Yes",{"$error":"#N/A"},276]
[55,"09100000","Bristol County Agricultural","Public School District","Superintendent","Adele Sands","135 Center Street","","Dighton","MA","02715","Nancy Labrie","781-338-3536","nancy.h.labrie@mass.gov",null,0,224976,0,"Yes","160",437]
[56,"08100000","Bristol-Plymouth Regional Vocational Technical","Public School District","Superintendent","Alexandre Magalhaes","207 Hart Street","","Taunton","MA","02780","Russ Fleming","781-338-6259","russellw.fleming@mass.gov",null,3,601883,5,"No","507",1278]
[57,"00440000","Brockton","Public School District","Superintendent","Michael Thomas","43 Crescent Street","","Brockton","MA","02301","Sue Mazzarella","781-338-3587","susan.mazzarella@mass.gov",null,4240,15158834,576,"Yes","4738",15746]
[58,"04280000","Brooke Charter School (District)","Charter District","Charter School Leader","Kimberly Steadman","190 Cummins Highway","","Roslindale","MA","02131","Julia Foodman","781-338-3577","julia.b.foodman@mass.gov",null,133,3880315,0,"Yes","1312",1965]
[59,"00450000","Brookfield","Public School District","Superintendent","Erin Nosek","320 Brookfield Rd","","Fiskdale","MA","01518","Russ Fleming","781-338-6259","russellw.fleming@mass.gov",null,1,246720,3,"No",{"$error":"#N/A"},278]
[60,"00460000","Brookline","Public School District","Superintendent","Benjamin Lummis","333 Washington Street","","Brookline","MA","02445","Julia Foodman","781-338-3577","julia.b.foodman@mass.gov",null,877,1641807,21,"Yes","297",7575]
[61,"00480000","Burlington","Public School District","Superintendent","Eric Conti","123 Cambridge Street","","Burlington","MA","01803","Sue Mazzarella","781-338-3587","susan.mazzarella@mass.gov",null,161,409814,7,"Yes","203",3464]
[62,"00490000","Cambridge","Public School District","Superintendent","Kenneth Salim","135 Berkshire Street","","Cambridge","MA","02141","Alex Lilley","781-338-6212","alex.j.lilley@mass.gov",null,548,3550876,224,"Yes","943",6626]
[63,"00500000","Canton","Public School District","Superintendent","Jennifer Fischer-Mueller","960 Washington Street","","Canton","MA","02021","Ellie Rounds-Bloom","781-338-3128","eleanor.rounds@mass.gov",null,83,408310,24,"Yes","229",3281]
[64,"04320000","Cape Cod Lighthouse Charter (District)","Charter District","Charter School Leader","Paul Niles","195 Route 137","","East Harwich","MA","02645","Ellie Rounds-Bloom","781-338-3128","eleanor.rounds@mass.gov",null,1,93191,0,"No","72",241]
[65,"08150000","Cape Cod Regional Vocational Technical","Public School District","Superintendent","Robert Sanborn","351 Pleasant Lake Avenue","","Harwich","MA","02645","Julia Foodman","781-338-3577","julia.b.foodman@mass.gov",null,17,434013,0,"No","357",599]
[66,"00510000","Carlisle","Public School District","Superintendent","James O'Shea","83 School Street","","Carlisle","MA","01741","Nancy Labrie","781-338-3536","nancy.h.labrie@mass.gov",null,18,85841,0,"Yes","23",594]
[67,"00520000","Carver","Public School District","Superintendent","Scott Knief","3 Carver Square Blvd.","","Carver","MA","02330","Nancy Labrie","781-338-3536","nancy.h.labrie@mass.gov",null,20,542381,1,"Yes","290",1523]
[68,"06350000","Central Berkshire","Public School District","Superintendent","Laurie Casna","PO Box 299","Rt 8","Dalton","MA","01227","Alex Lilley","781-338-6212","alex.j.lilley@mass.gov",null,5,1156382,8,"Yes","713",1526]
[69,"00560000","Chelmsford","Public School District","Superintendent","Roger Lang","230 North Road","","Chelmsford","MA","01824","Russ Fleming","781-338-6259","russellw.fleming@mass.gov",null,202,645438,0,"Yes","658",4928]
[70,"00570000","Chelsea","Public School District","Superintendent","Almudena Abeyta","500 Broadway","Room 216","Chelsea","MA","02150","Julia Foodman","781-338-3577","julia.b.foodman@mass.gov",null,2191,9234748,506,"Yes","3628",6120]
[71,"06320000","Chesterfield-Goshen","Public School District","Superintendent","Aaron Osborne","PO Box 300","","Chesterfield","MA","01012","Nancy Labrie","781-338-3536","nancy.h.labrie@mass.gov",null,null,85841,null,null,null,118]
[72,"00610000","Chicopee","Public School District","Superintendent","Lynn Clark","180 Broadway Street","","Chicopee","MA","01020","Beth O'Connell","781-338-3132","elizabeth.a.o'connell@mass.gov",null,453,9946117,175,"Yes","2528",7008]
[73,"04180000","Christa McAuliffe Charter Public (District)","Charter District","Charter School Leader","Dayshel Reid","139 Newbury St","","Framingham","MA","01701","Sue Mazzarella","781-338-3587","susan.mazzarella@mass.gov",null,10,213922,0,"Yes","149",392]
[74,"04370000","City on a Hill Charter Public School Circuit Street (District)","Charter District","Charter School Leader","Kevin Taylor","15 Allerton Street","Suite 1","Roxbury","MA","02119","Julia Foodman","781-338-3577","julia.b.foodman@mass.gov",null,37,1305407,2,"No","221",200]
[75,"00630000","Clarksburg","Public School District","Superintendent","John Franzoni","777 West Crossroad","","Clarksburg","MA","01247","Sue Mazzarella","781-338-3587","susan.mazzarella@mass.gov",null,0,85841,0,"No","211",194]
[76,"00640000","Clinton","Public School District","Superintendent","Steven Meyer","150 School Street","","Clinton","MA","01510","Alex Chiu","781-338-3586","alexandria.w.chiu@mass.gov",null,216,957883,8,"Yes","821",1841]
[77,"04380000","Codman Academy Charter Public (District)","Charter District","Charter School Leader","Thabiti Brown","637 Washington Street","","Dorchester","MA","02124","Julia Foodman","781-338-3577","julia.b.foodman@mass.gov",null,23,907205,21,"Yes","291",326]
[78,"00650000","Cohasset","Public School District","Superintendent","Patrick Sullivan","143 Pond Street","","Cohasset","MA","02025","Ellie Rounds-Bloom","781-338-3128","eleanor.rounds@mass.gov",null,4,183927,0,"Yes","27",1491]
[79,"35030000","Collegiate Charter School of Lowell (District)","Charter District","Charter School Leader","Laurie Hodgdon","1857 Middlesex Street","","Lowell","MA","01851","Sue Mazzarella","781-338-3587","susan.mazzarella@mass.gov",null,220,1020372,0,"Yes","555",934]
[80,"04360000","Community Charter School of Cambridge (District)","Charter District","Charter School Leader","Rebecca Norris","245 Bent Street","","Cambridge","MA","02141","Nancy Labrie","781-338-3536","nancy.h.labrie@mass.gov",null,13,306304,5,"No","171",320]
[81,"04260000","Community Day Charter Public School - Gateway (District)","Charter District","Charter School Leader","Mary Chance","190 Hampshire Street","","Lawrence","MA","01840","Colleen Holforty","781-338-3522","colleen.e.holforty@mass.gov",null,74,553838,0,"Yes","232",360]
[82,"04400000","Community Day Charter Public School - Prospect (District)","Charter District","Charter School Leader","Mary Chance","190 Hampshire Street","","Lawrence","MA","01840","Colleen Holforty","781-338-3522","colleen.e.holforty@mass.gov",null,121,506935,0,"No","322",379]
[83,"04310000","Community Day Charter Public School - R. Kingman Webster (District)","Charter District","Charter School Leader","Mary Chance","190 Hampshire Street","","Lawrence","MA","01840","Colleen Holforty","781-338-3522","colleen.e.holforty@mass.gov",null,80,517159,0,"No","264",359]
[84,"00670000","Concord","Public School District","Superintendent","Laurie Hunter","120 Meriam Rd","","Concord","MA","01742","Nancy Labrie","781-338-3536","nancy.h.labrie@mass.gov",null,55,453100,0,"Yes","59",2072]
[85,"06400000","Concord-Carlisle","Public School District","Superintendent","Laurie Hunter","120 Meriam Rd","","Concord","MA","01742","Nancy Labrie","781-338-3536","nancy.h.labrie@mass.gov",null,6,95886,1,"Yes","106",1311]
[86,"04390000","Conservatory Lab Charter (District)","Charter District","Charter School Leader","John Chistolini","2120 Dorchester Avenue","","Dorchester","MA","02124","Alex Chiu","781-338-3586","alexandria.w.chiu@mass.gov",null,72,1078832,0,"No","307",403]
[87,"00680000","Conway","Public School District","Superintendent","Darius Modestow","113 North Main Street, Office C101","","South Deerfield","MA","01373","Alex Lilley","781-338-6212","alex.j.lilley@mass.gov",null,null,85841,null,null,null,116]
[88,"00710000","Danvers","Public School District","Superintendent","Lisa Dana","64 Cabot Road","","Danvers","MA","01923","Sue Mazzarella","781-338-3587","susan.mazzarella@mass.gov",null,38,1041084,0,"Yes","360",3344]
[89,"00720000","Dartmouth","Public School District","Superintendent","Bonny Gifford","8 Bush Street","","Dartmouth","MA","02748","Sue Mazzarella","781-338-3587","susan.mazzarella@mass.gov",null,94,1271877,11,"Yes","444",3518]
[90,"00730000","Dedham","Public School District","Superintendent","Michael Welch","100 Whiting Avenue","","Dedham","MA","02026","Beth O'Connell","781-338-3132","elizabeth.a.o'connell@mass.gov",null,179,1012242,39,"Yes","349",2634]
[91,"00740000","Deerfield","Public School District","Superintendent","Darius Modestow","113 North Main Street, Office C101","","South Deerfield","MA","01373","Alex Lilley","781-338-6212","alex.j.lilley@mass.gov",null,4,122381,0,"No",{"$error":"#N/A"},348]
[92,"06450000","Dennis-Yarmouth","Public School District","Superintendent","Carol Woodbury","296 Station Avenue","","South Yarmouth","MA","02664","Sue Mazzarella","781-338-3587","susan.mazzarella@mass.gov",null,288,2271347,154,"Yes","660",2810]
[93,"06500000","Dighton-Rehoboth","Public School District","Superintendent","Anthony Azar","2700 Regional Road","","North Dighton","MA","02764","Alex Chiu","781-338-3586","alexandria.w.chiu@mass.gov",null,10,807528,9,"Yes","251",2778]
[94,"00770000","Douglas","Public School District","Superintendent","Kevin Maines","21 Davis Street","","Douglas","MA","01516","Alex Lilley","781-338-6212","alex.j.lilley@mass.gov",null,9,184307,0,"Yes","120",1231]
[95,"00780000","Dover","Public School District","Superintendent","Andrew Keough","157 Farm Street","","Dover","MA","02030","Beth O'Connell","781-338-3132","elizabeth.a.o'connell@mass.gov",null,16,85841,0,"Yes","14",488]
[96,"06550000","Dover-Sherborn","Public School District","Superintendent","Andrew Keough","157 Farm Street","","Dover","MA","02030","Beth O'Connell","781-338-3132","elizabeth.a.o'connell@mass.gov",null,4,149608,0,"Yes","21",1215]
[97,"00790000","Dracut","Public School District","Superintendent","Steven Stone","2063 Lakeview Avenue","","Dracut","MA","01826","Colleen Holforty","781-338-3522","colleen.e.holforty@mass.gov",null,65,1532521,15,"Yes","927",3687]
[98,"04070000","Dudley Street Neighborhood Charter School (District)","Charter District","Charter School Leader","Alexandra Soto","6 Shirley Street","","Boston","MA","02119","Beth O'Connell","781-338-3132","elizabeth.a.o'connell@mass.gov",null,68,701405,0,"No","214",223]
[99,"06580000","Dudley-Charlton Reg","Public School District","Superintendent","Steven Lamarche","68 Dudley Oxford Road","","Dudley","MA","01571","Sue Mazzarella","781-338-3587","susan.mazzarella@mass.gov",null,94,1089272,20,"Yes","749",3613]
[100,"00820000","Duxbury","Public School District","Superintendent","John Antonucci","93 Chandler Street","","Duxbury","MA","02332","Nancy Labrie","781-338-3536","nancy.h.labrie@mass.gov",null,9,217168,1,"Yes","65",2928]
[101,"00830000","East Bridgewater","Public School District","Superintendent","Elizabeth Legault","143 Plymouth Street","","East Bridgewater","MA","02333","Russ Fleming","781-338-6259","russellw.fleming@mass.gov",null,20,565858,9,"Yes","141",2105]
[102,"00870000","East Longmeadow","Public School District","Superintendent","Gordon Smith","180 Maple Street","","East Longmeadow","MA","01028","Russ Fleming","781-338-6259","russellw.fleming@mass.gov",null,51,965608,0,"Yes","483",2572]
[103,"00850000","Eastham","Public School District","Superintendent","Thomas Conrad","78 Eldredge Pkwy","","Orleans","MA","02653","Julia Foodman","781-338-3577","julia.b.foodman@mass.gov",null,5,159535,0,"Yes",{"$error":"#N/A"},170]
[104,"00860000","Easthampton","Public School District","Superintendent","Allison Leclair","50 Payson Avenue","Second Floor","Easthampton","MA","01027","Beth O'Connell","781-338-3132","elizabeth.a.o'connell@mass.gov",null,41,702048,11,"Yes","313",1494]
[105,"00880000","Easton","Public School District","Superintendent","Lisha Cabral","50 Oliver Street","","North Easton","MA","02356","Alex Lilley","781-338-6212","alex.j.lilley@mass.gov",null,65,473513,10,"Yes","369",3552]
[106,"00890000","Edgartown","Public School District","Superintendent","Matthew D'Andrea","4 Pine Street","","Vineyard Haven","MA","02568","Sue Mazzarella","781-338-3587","susan.mazzarella@mass.gov",null,81,107213,0,"No",{"$error":"#N/A"},391]
[107,"04520000","Edward M. Kennedy Academy for Health Careers (Horace Mann Charter) (District)","Charter District","Charter School Leader","Caren Walker Gregory","360 Huntington Avenue","c/o 102 Cahners Hall","Boston","MA","02115","Sue Mazzarella","781-338-3587","susan.mazzarella@mass.gov",null,63,1053525,0,"Yes","330",372]
[108,"00910000","Erving","Public School District","Superintendent","Jennifer Culkeen","18 Pleasant Street","","Erving","MA","01344","Nancy Labrie","781-338-3536","nancy.h.labrie@mass.gov",null,2,98962,0,"No","46",107]
[109,"08170000","Essex North Shore Agricultural and Technical School District","Public School District","Superintendent","Heidi Riccio","565 Maple Street","P.O. Box 346","Hathorne","MA","01937","Alex Chiu","781-338-3586","alexandria.w.chiu@mass.gov",null,2,533706,4,"Yes","397",1475]
[110,"00930000","Everett","Public School District","Superintendent","Priya Tahiliani","121 Vine Street","","Everett","MA","02149","Ellie Rounds-Bloom","781-338-3128","eleanor.rounds@mass.gov",null,1669,5996292,125,"Yes","2200",6969]
[111,"04100000","Excel Academy Charter (District)","Charter District","Charter School Leader","Owen Stearns","58 Moore Street","","East Boston","MA","02128","Alex Chiu","781-338-3586","alexandria.w.chiu@mass.gov",null,152,2062903,15,"Yes","886",1345]
[112,"00940000","Fairhaven","Public School District","Superintendent","Robert Baldwin","128 Washington Street","","Fairhaven","MA","02719","Alex Chiu","781-338-3586","alexandria.w.chiu@mass.gov",null,33,1184391,7,"Yes","638",2003]
[113,"00950000","Fall River","Public School District","Superintendent","Matthew Malone","417 Rock Street","","Fall River","MA","02720","Sue Mazzarella","781-338-3587","susan.mazzarella@mass.gov",null,1714,17430945,434,"Yes","5671",10153]
[114,"00960000","Falmouth","Public School District","Superintendent","Lori Duerr","340 Teaticket Hwy","","East Falmouth","MA","02536","Beth O'Connell","781-338-3132","elizabeth.a.o'connell@mass.gov",null,110,1501363,33,"Yes","538",3159]
[115,"06620000","Farmington River Reg","Public School District","Superintendent","Thomas Nadolny","555 N Main Street","PO Box 679","Otis","MA","01253","Ellie Rounds-Bloom","781-338-3128","eleanor.rounds@mass.gov",null,0,109924,0,"No","56",89]
[116,"00970000","Fitchburg","Public School District","Superintendent","Robert Jokela","376 South Street","","Fitchburg","MA","01420","Russ Fleming","781-338-6259","russellw.fleming@mass.gov",null,843,7424837,484,"Yes","2910",5313]
[117,"00980000","Florida","Public School District","Superintendent","John Franzoni","56 North County Rd","","Florida","MA","01247","Sue Mazzarella","781-338-3587","susan.mazzarella@mass.gov",null,0,85841,0,"Yes",{"$error":"#N/A"},74]
[118,"04130000","Four Rivers Charter Public (District)","Charter District","Charter School Leader","Peter Garbus","248 Colrain Road","","Greenfield","MA","01301","Sue Mazzarella","781-338-3587","susan.mazzarella@mass.gov",null,0,123031,0,"No","85",213]
[119,"00990000","Foxborough","Public School District","Superintendent","Amy Berdos","60 South Street","C/O Igo Administration Building","Foxborough","MA","02035","Ellie Rounds-Bloom","781-338-3128","eleanor.rounds@mass.gov",null,66,331409,19,"Yes","109",2482]
[120,"04460000","Foxborough Regional Charter (District)","Charter District","Charter School Leader","Mark Logan","131 Central Street","35 Commercial Street","Foxborough","MA","02035","Nancy Labrie","781-338-3536","nancy.h.labrie@mass.gov",null,147,630469,10,"No","514",1637]
[121,"01000000","Framingham","Public School District","Superintendent","Robert Tremblay","73 Mt. Wayte Avenue","Suite 5","Framingham","MA","01702","Colleen Holforty","781-338-3522","colleen.e.holforty@mass.gov",null,2001,6420292,365,"Yes","1591",9080]
[122,"04780000","Francis W. Parker Charter Essential (District)","Charter District","Charter School Leader","Todd Sumner","49 Antietam Street","","Devens","MA","01434","Julia Foodman","781-338-3577","julia.b.foodman@mass.gov",null,null,85841,null,null,null,396]
[123,"01010000","Franklin","Public School District","Superintendent","Sara Ahern","355 East Central Street","","Franklin","MA","02038","Nancy Labrie","781-338-3536","nancy.h.labrie@mass.gov",null,78,475496,5,"Yes","205",5015]
[124,"08180000","Franklin County Regional Vocational Technical","Public School District","Superintendent","Richard Martin","82 Industrial Blvd","","Turners Falls","MA","01376","Sue Mazzarella","781-338-3587","susan.mazzarella@mass.gov",null,0,386350,12,"No","253",496]
[125,"06650000","Freetown-Lakeville","Public School District","Superintendent","Richard Medeiros","98 Howland Rd","","Lakeville","MA","02347","Colleen Holforty","781-338-3522","colleen.e.holforty@mass.gov",null,18,960703,0,"Yes","410",2810]
[126,"06700000","Frontier","Public School District","Superintendent","Darius Modestow","113 North Main Street, Office C101","","South Deerfield","MA","01373","Alex Lilley","781-338-6212","alex.j.lilley@mass.gov",null,7,157542,0,"Yes","275",648]
[127,"01030000","Gardner","Public School District","Superintendent","Mark Pellegrino","70 Waterford Street","","Gardner","MA","01440","Russ Fleming","781-338-6259","russellw.fleming@mass.gov",null,100,2664843,74,"Yes","1299",2277]
[128,"06720000","Gateway","Public School District","Superintendent","David Hopson","12 Littleville Road","","Huntington","MA","01050","Russ Fleming","781-338-6259","russellw.fleming@mass.gov",null,18,551928,12,"Yes","67",771]
[129,"01050000","Georgetown","Public School District","Superintendent","Carol Jacobs","51 North Street","","Georgetown","MA","01833","Julia Foodman","781-338-3577","julia.b.foodman@mass.gov",null,3,153197,0,"Yes","93",1301]
[130,"06740000","Gill-Montague","Public School District","Superintendent","Michael Sullivan","35 Crocker Avenue","","Turners Falls","MA","01376","Beth O'Connell","781-338-3132","elizabeth.a.o'connell@mass.gov",null,52,866707,3,"Yes","323",894]
[131,"04960000","Global Learning Charter Public (District)","Charter District","Charter School Leader","Stephen Furtado","190 Ashley Boulevard","","New Bedford","MA","02746","Julia Foodman","781-338-3577","julia.b.foodman@mass.gov",null,52,705884,0,"Yes","413",499]
[132,"01070000","Gloucester","Public School District","Superintendent","Richard Safier","2 Blackburn Drive","","Gloucester","MA","01930","Beth O'Connell","781-338-3132","elizabeth.a.o'connell@mass.gov",null,185,1975620,0,"Yes","850",2784]
[133,"01090000","Gosnold","Public School District","Superintendent","Margaret Frieswyk","263 Hill & Plain Road",null,"East Falmouth","MA","02536","Ellie Rounds-Bloom","781-338-3128","eleanor.rounds@mass.gov",null,null,85841]
[134,"01100000","Grafton","Public School District","Superintendent","James Cummings","30 Providence Rd","","Grafton","MA","01519","Alex Lilley","781-338-6212","alex.j.lilley@mass.gov",null,52,273683,15,"Yes","269",3098]
[135,"01110000","Granby","Public School District","Superintendent","Sheryl Stanton","387 East State Street","","Granby","MA","01033","Ellie Rounds-Bloom","781-338-3128","eleanor.rounds@mass.gov",null,31,292308,0,"Yes","173",729]
[136,"08210000","Greater Fall River Regional Vocational Technical","Public School District","Superintendent","Elvio Ferreira","251 Stonehaven Rd","","Fall River","MA","02723","Alex Chiu","781-338-3586","alexandria.w.chiu@mass.gov",null,21,1314041,5,"Yes","806",1412]
[137,"08230000","Greater Lawrence Regional Vocational Technical","Public School District","Superintendent","John Lavoie","57 River Rd","","Andover","MA","01810","Ellie Rounds-Bloom","781-338-3128","eleanor.rounds@mass.gov",null,202,2217679,55,"No","1312",1581]
[138,"08280000","Greater Lowell Regional Vocational Technical","Public School District","Superintendent","Jill Davis","250 Pawtucket Blvd","","Tyngsborough","MA","01879","Alex Chiu","781-338-3586","alexandria.w.chiu@mass.gov",null,164,2239322,9,"Yes","1528",2215]
[139,"08250000","Greater New Bedford Regional Vocational Technical","Public School District","Superintendent","James O'Brien","1121 Ashley Blvd","","New Bedford","MA","02745","Colleen Holforty","781-338-3522","colleen.e.holforty@mass.gov",null,71,2049058,17,"No","1290",2090]
[140,"01140000","Greenfield","Public School District","Superintendent","Jordana Harper","195 Federal Street, Suite 100","","Greenfield","MA","01301","Alex Lilley","781-338-6212","alex.j.lilley@mass.gov",null,99,1832223,52,"Yes","1216",1635]
[141,"39010000","Greenfield Commonwealth Virtual District","Public School District","Superintendent","Salah Khelfaoui","238 Main St.","3rd Floor","Greenfield","MA","01301","Nancy Labrie","781-338-3536","nancy.h.labrie@mass.gov",null,12,990672,7,"No","459",732]
[142,"06730000","Groton-Dunstable","Public School District","Superintendent","Laura Chesson","344 Main Street","","Groton","MA","01450","Alex Chiu","781-338-3586","alexandria.w.chiu@mass.gov",null,25,163250,0,"Yes","151",2314]
[143,"01170000","Hadley","Public School District","Superintendent","Anne McKenzie","125 Russell Street","","Hadley","MA","01035","Nancy Labrie","781-338-3536","nancy.h.labrie@mass.gov",null,31,196900,0,"Yes","80",515]
[144,"01180000","Halifax","Public School District","Superintendent","Jill Proulx","250 Pembroke Street","","Kingston","MA","02364","Nancy Labrie","781-338-3536","nancy.h.labrie@mass.gov",null,7,106709,0,"Yes",{"$error":"#N/A"},609]
[145,"06750000","Hamilton-Wenham","Public School District","Superintendent","Julie Kukenberger","5 School Street","","Wenham","MA","01984","Sue Mazzarella","781-338-3587","susan.mazzarella@mass.gov",null,11,300065,0,"Yes","66",1830]
[146,"04990000","Hampden Charter School of Science East (District)","Charter District","Charter School Leader","Tarkan Topcuoglu","20 Johnson Road","","Chicopee","MA","01022","Beth O'Connell","781-338-3132","elizabeth.a.o'connell@mass.gov",null,17,901162,0,"Yes","299",523]
[147,"35160000","Hampden Charter School of Science West (District)","Charter District","Charter School Leader","Tarkan Topcuoglu","511 Main St.","","West Springfield","MA","01089","Beth O'Connell","781-338-3132","elizabeth.a.o'connell@mass.gov",null,26,690250,0,"Yes","165",258]
[148,"06800000","Hampden-Wilbraham","Public School District","Superintendent","Albert Ganem","621 Main Street","","Wilbraham","MA","01095","Alex Lilley","781-338-6212","alex.j.lilley@mass.gov",null,25,979672,0,"Yes","353",2919]
[149,"06830000","Hampshire","Public School District","Superintendent","Aaron Osborne","19 Stage Rd","","Westhampton","MA","01027","Nancy Labrie","781-338-3536","nancy.h.labrie@mass.gov",null,11,85841,0,"Yes","326",738]
[150,"01210000","Hancock","Public School District","Superintendent","Peter Dillon","1831 STATE ROAD","","RICHMOND","MA","01254","Julia Foodman","781-338-3577","julia.b.foodman@mass.gov",null,null,85841,null,null,null,41]
[151,"01220000","Hanover","Public School District","Superintendent","Matthew Ferron","188 Broadway Street","","Hanover","MA","02339","Beth O'Connell","781-338-3132","elizabeth.a.o'connell@mass.gov",null,24,199162,1,"Yes","128",2595]
[152,"01250000","Harvard","Public School District","Superintendent","Linda Dwight","39 Massachusetts Avenue","","Harvard","MA","01451","Sue Mazzarella","781-338-3587","susan.mazzarella@mass.gov",null,17,227288,30,"Yes","94",1043]
[153,"01270000","Hatfield","Public School District","Superintendent","John Robert","34 School Street","","Hatfield","MA","01038","Alex Lilley","781-338-6212","alex.j.lilley@mass.gov",null,0,107251,0,"Yes","64",420]
[154,"01280000","Haverhill","Public School District","Superintendent","Margaret Marotta","4 Summer Street","","Haverhill","MA","01830","Ellie Rounds-Bloom","781-338-3128","eleanor.rounds@mass.gov",null,771,7648488,249,"Yes","5451",7922]
[155,"06850000","Hawlemont","Public School District","Superintendent","Patricia Bell","24 Ashfield Rd","","Shelburne Falls","MA","01370","Alex Lilley","781-338-6212","alex.j.lilley@mass.gov",null,0,115901,0,"No","86",121]
[156,"04190000","Helen Y. Davis Leadership Academy Charter Public (District)","Charter District","Charter School Leader","Chris Coblyn","23 Leonard Street","","Boston","MA","02122","Alex Lilley","781-338-6212","alex.j.lilley@mass.gov",null,16,735426,0,"Yes","190",201]
[157,"04550000","Hill View Montessori Charter Public (District)","Charter District","Charter School Leader","Phil Arnold","75 Foundation Ave","Ward Hill Business Park","Haverhill","MA","01835","Ellie Rounds-Bloom","781-338-3128","eleanor.rounds@mass.gov",null,33,127395,0,"Yes","91",317]
[158,"04500000","Hilltown Cooperative Charter Public (District)","Charter District","Charter School Leader","Daniel Klatz","1 Industrial Parkway","","Easthampton","MA","01039","Beth O'Connell","781-338-3132","elizabeth.a.o'connell@mass.gov",null,0,85841,0,"No","51",218]
[159,"01310000","Hingham","Public School District","Superintendent","Paul Austin","220 Central Street","","Hingham","MA","02043","Ellie Rounds-Bloom","781-338-3128","eleanor.rounds@mass.gov",null,15,430060,0,"Yes","74",4209]
[160,"01330000","Holbrook","Public School District","Superintendent","Julie Hamilton","245 So. Franklin Street","","Holbrook","MA","02343","Nancy Labrie","781-338-3536","nancy.h.labrie@mass.gov",null,95,724103,0,"Yes","576",1282]
[161,"01350000","Holland","Public School District","Superintendent","Erin Nosek","320 Brookfield Rd","","Fiskdale","MA","01518","Russ Fleming","781-338-6259","russellw.fleming@mass.gov",null,0,108569,0,"Yes",{"$error":"#N/A"},195]
[162,"01360000","Holliston","Public School District","Superintendent","Bradford Jackson","370 Hollis Street","","Holliston","MA","01746","Julia Foodman","781-338-3577","julia.b.foodman@mass.gov",null,67,204717,0,"No","74",2828]
[163,"01370000","Holyoke","Public School District","Superintendent","Stephen Zrike","57 Suffolk Street","","Holyoke","MA","01040","Alex Lilley","781-338-6212","alex.j.lilley@mass.gov",null,1161,16533318,754,"Yes","5164",5021]
[164,"04530000","Holyoke Community Charter (District)","Charter District","Charter School Leader","Sonia Pope","2200 Northampton Street","","Holyoke","MA","01040","Alex Lilley","781-338-6212","alex.j.lilley@mass.gov",null,107,2045311,9,"No","701",702]
[165,"06030000","Hoosac Valley Regional","Public School District","Superintendent","Aaron Dean","191 Church St",null,"Cheshire","MA","01225","Alex Lilley","781-338-6212","alex.j.lilley@mass.gov",null,8,1019118,16,"Yes","619",1060]
[166,"01380000","Hopedale","Public School District","Superintendent","Karen Crebase","25 Adin Street","","Hopedale","MA","01747","Sue Mazzarella","781-338-3587","susan.mazzarella@mass.gov",null,20,259035,0,"No","158",1007]
[167,"01390000","Hopkinton","Public School District","Superintendent","Carol Cavanaugh","89 Hayden Rowe Street","","Hopkinton","MA","01748","Alex Lilley","781-338-6212","alex.j.lilley@mass.gov",null,193,211328,0,"Yes","284",3838]
[168,"01410000","Hudson","Public School District","Superintendent","Marco Rodrigues","155 Apsley Street","","Hudson","MA","01749","Ellie Rounds-Bloom","781-338-3128","eleanor.rounds@mass.gov",null,242,980429,15,"Yes","397",2585]
[169,"01420000","Hull","Public School District","Superintendent","Michael Devine","18 Harborview Road","","Hull","MA","02045","Alex Chiu","781-338-3586","alexandria.w.chiu@mass.gov",null,3,422179,0,"Yes","171",818]
[170,"04350000","Innovation Academy Charter (District)","Charter District","Charter School Leader","Gregory Orpen","72 Tyng Road","","Tyngsborough","MA","01879","Colleen Holforty","781-338-3522","colleen.e.holforty@mass.gov",null,14,210409,0,"No","122",793]
[171,"01440000","Ipswich","Public School District","Superintendent","Brian Blake","1 Lord Square","","Ipswich","MA","01938","Nancy Labrie","781-338-3536","nancy.h.labrie@mass.gov",null,34,532467,19,"Yes","105",1667]
[172,"06900000","King Philip","Public School District","Superintendent","Paul Zinni","18 King Street","","Norfolk","MA","02056","Nancy Labrie","781-338-3536","nancy.h.labrie@mass.gov",null,13,171590,0,"Yes","131",1998]
[173,"01450000","Kingston","Public School District","Superintendent","Jill Proulx","250 Pembroke Street","","Kingston","MA","02364","Nancy Labrie","781-338-3536","nancy.h.labrie@mass.gov",null,23,148582,19,"Yes",{"$error":"#N/A"},1100]
[174,"04630000","KIPP Academy Boston Charter School (District)","Charter District","Charter School Leader","Caleb Dolan","37 Babson Street","KIPP Academy Boston","Mattapan","MA","02126","Beth O'Connell","781-338-3132","elizabeth.a.o'connell@mass.gov",null,167,1882996,0,"No","595",597]
[175,"04290000","KIPP Academy Lynn Charter (District)","Charter District","Charter School Leader","Caleb Dolan","90 High Rock Street","","Lynn","MA","01902","Beth O'Connell","781-338-3132","elizabeth.a.o'connell@mass.gov",null,274,1737101,10,"Yes","1098",1590]
[176,"01490000","Lawrence","Public School District","Superintendent","Cynthia Paris","237 Essex Street","","Lawrence","MA","01840","Russ Fleming","781-338-6259","russellw.fleming@mass.gov",null,4764,24085662,584,"Yes","9126",13176]
[177,"04540000","Lawrence Family Development Charter (District)","Charter District","Charter School Leader","Ralph Carrero","34 West Street","","Lawrence","MA","01841","Ellie Rounds-Bloom","781-338-3128","eleanor.rounds@mass.gov",null,166,1074826,0,"No","594",696]
[178,"04860000","Learning First Charter Public School(District)","Charter District","Charter School Leader","Leo Flanagan","51 Gage Street","","Worcester","MA","01605","Julia Foodman","781-338-3577","julia.b.foodman@mass.gov",null,35,1032389,13,"Yes","613",668]
[179,"01500000","Lee","Public School District","Superintendent","Michael Richard","300A Greylock St","","Lee","MA","01238","Sue Mazzarella","781-338-3587","susan.mazzarella@mass.gov",null,41,334298,10,"Yes","205",688]
[180,"01510000","Leicester","Public School District","Superintendent","Marilyn Tencza","3 Washburn Square","3rd Floor","Leicester","MA","01524","Colleen Holforty","781-338-3522","colleen.e.holforty@mass.gov",null,18,774851,0,"Yes","386",1452]
[181,"01520000","Lenox","Public School District","Superintendent","William Cameron","6 Walker Street","","Lenox","MA","01240","Ellie Rounds-Bloom","781-338-3128","eleanor.rounds@mass.gov",null,701,392781,613,"Yes","75",757]
[182,"01540000","Leverett","Public School District","Superintendent","Jennifer Culkeen","18 Pleasant Street","","Erving","MA","01344","Nancy Labrie","781-338-3536","nancy.h.labrie@mass.gov",null,null,85841,null,null,null,121]
[183,"01530000","Leominster","Public School District","Superintendent","Paula Deacon","24 Church Street","","Leominster","MA","01453","Colleen Holforty","781-338-3522","colleen.e.holforty@mass.gov",null,628,4990554,0,"Yes","3697",6043]
[184,"01550000","Lexington","Public School District","Superintendent","Julie Hackett","146 Maple Street","","Lexington","MA","02420","Russ Fleming","781-338-6259","russellw.fleming@mass.gov",null,76,545029,0,"Yes","72",7285]
[185,"35140000","Libertas Academy Charter School (District)","Charter District","Charter School Leader","Modesto Montero","146 Chestnut Street","","Springfield","MA","01103","Ellie Rounds-Bloom","781-338-3128","eleanor.rounds@mass.gov",null,57,848140,0,"Yes","165",254]
[186,"01570000","Lincoln","Public School District","Superintendent","Rebecca McFall","1 Ballfield Road","","Lincoln","MA","01773","Julia Foodman","781-338-3577","julia.b.foodman@mass.gov",null,10,85841,2,"Yes","5",1061]
[187,"06950000","Lincoln-Sudbury","Public School District","Superintendent","Bella Wong","390 Lincoln Rd","","Sudbury","MA","01776","Russ Fleming","781-338-6259","russellw.fleming@mass.gov",null,30,181570,2,"Yes","125",1533]
[188,"01580000","Littleton","Public School District","Superintendent","Kelly Clenchy","PO Box 1486","","Littleton","MA","01460","Beth O'Connell","781-338-3132","elizabeth.a.o'connell@mass.gov",null,26,169057,0,"Yes","80",1633]
[189,"01590000","Longmeadow","Public School District","Superintendent","Maurice O'shea","535 Bliss Road","","Longmeadow","MA","01106","Sue Mazzarella","781-338-3587","susan.mazzarella@mass.gov",null,3518,498960,1009,"Yes","65",2834]
[190,"01600000","Lowell","Public School District","Superintendent","Joel Boyd","155 Merrimack Street","","Lowell","MA","01852","Nancy Labrie","781-338-3536","nancy.h.labrie@mass.gov",null,391,17882494,18,"Yes","12037",13945]
[191,"04560000","Lowell Community Charter Public (District)","Charter District","Charter School Leader","Nicholas Leonardos","206 Jackson Street","","Lowell","MA","01852","Nancy Labrie","781-338-3536","nancy.h.labrie@mass.gov",null,8,927514,0,"No","605",769]
[192,"04580000","Lowell Middlesex Academy Charter (District)","Charter District","Charter School Leader","Margaret McDevitt","67 Middle St","","Lowell","MA","01852","Russ Fleming","781-338-6259","russellw.fleming@mass.gov",null,65,154872,12,"Yes","92",101]
[193,"01610000","Ludlow","Public School District","Superintendent","Todd Gazda","63 Chestnut Street","","Ludlow","MA","01056","Alex Chiu","781-338-3586","alexandria.w.chiu@mass.gov",null,24,1377953,6,"Yes","504",2461]
[194,"01620000","Lunenburg","Public School District","Superintendent","Kathleen Burnham","1025 Mass Avenue","","Lunenburg","MA","01462","Colleen Holforty","781-338-3522","colleen.e.holforty@mass.gov",null,4063,588834,1114,"Yes","197",1619]
[195,"01630000","Lynn","Public School District","Superintendent","Patrick Tutwiler","100 Bennett St","","Lynn","MA","01905","Colleen Holforty","781-338-3522","colleen.e.holforty@mass.gov",null,47,18745330,0,"Yes","13857",15888]
[196,"01640000","Lynnfield","Public School District","Superintendent","Jane Tremblay","525 Salem Street","","Lynnfield","MA","01940","Russ Fleming","781-338-6259","russellw.fleming@mass.gov",null,1351,200552,173,"Yes","61",2176]
[197,"01650000","Malden","Public School District","Superintendent","John Oteri","77 Salem Street","","Malden","MA","02148","Julia Foodman","781-338-3577","julia.b.foodman@mass.gov",null,8,7051771,0,"Yes","3309",6296]
[198,"06980000","Manchester Essex Regional","Public School District","Superintendent","Pamela Beaudoin","PO BOX 1407","","Manchester","MA","01944","Julia Foodman","781-338-3577","julia.b.foodman@mass.gov",null,74,206931,18,"Yes","35",1377]
[199,"01670000","Mansfield","Public School District","Superintendent","Teresa Murphy","2 Park Row","","Mansfield","MA","02048","Beth O'Connell","781-338-3132","elizabeth.a.o'connell@mass.gov",null,0,516792,5,"No","184",3575]
[200,"35170000","Map Academy Charter School (District)","Charter District","Charter School Leader","Rachel Babcock","11 Resnik Road","","Plymouth","MA","02360","Beth O'Connell","781-338-3132","elizabeth.a.o'connell@mass.gov",null,113,200058,0,"Yes","101",164]
[201,"01680000","Marblehead","Public School District","Superintendent","William McAlduff Jr","9 Widger Road","","Marblehead","MA","01945","Sue Mazzarella","781-338-3587","susan.mazzarella@mass.gov",null,3,364464,0,"Yes","90",2938]
[202,"04640000","Marblehead Community Charter Public (District)","Charter District","Charter School Leader","Peter Cohen","17 Lime Street","","Marblehead","MA","01945","Beth O'Connell","781-338-3132","elizabeth.a.o'connell@mass.gov",null,1,85841,2,"Yes","46",206]
[203,"01690000","Marion","Public School District","Superintendent","Douglas White","135 Marion Rd","","Mattapoisett","MA","02739","Colleen Holforty","781-338-3522","colleen.e.holforty@mass.gov",null,1087,140866,128,"Yes","130",428]
[204,"01700000","Marlborough","Public School District","Superintendent","Michael Bergeron","17 Washington Street","","Marlborough","MA","01752","Ellie Rounds-Bloom","781-338-3128","eleanor.rounds@mass.gov",null,41,2826150,63,"Yes","1355",4648]
[205,"01710000","Marshfield","Public School District","Superintendent","Jeffrey Granatino","76 South River Street","","Marshfield","MA","02050","Colleen Holforty","781-338-3522","colleen.e.holforty@mass.gov",null,52,1247922,0,"Yes","385",3867]
[206,"07000000","Martha's Vineyard","Public School District","Superintendent","Matthew D'Andrea","4 Pine Street","","Vineyard Haven","MA","02568","Sue Mazzarella","781-338-3587","susan.mazzarella@mass.gov",null,7,117193,0,"No","539",670]
[207,"04660000","Martha's Vineyard Charter (District)","Charter District","Charter School Leader","Peter Steedman","PO Box 1150","","West Tisbury","MA","02575","Sue Mazzarella","781-338-3587","susan.mazzarella@mass.gov",null,99,176239,21,"Yes","96",177]
[208,"04920000","Martin Luther King Jr. Charter School of Excellence (District)","Charter District","Charter School Leader","Kendra Salvador","285 Dorset Street","","Springfield","MA","01108","Colleen Holforty","781-338-3522","colleen.e.holforty@mass.gov",null,9,1220309,0,"Yes","367",354]
[209,"07050000","Masconomet","Public School District","Superintendent","Michael Harvey","20 Endicott Rd","","Boxford","MA","01921","Sue Mazzarella","781-338-3587","susan.mazzarella@mass.gov",null,46,611297,0,"Yes","67",1757]
[210,"01720000","Mashpee","Public School District","Superintendent","Patricia DeBoer","150-A Old Barnstable Road","","Mashpee","MA","02649","Nancy Labrie","781-338-3536","nancy.h.labrie@mass.gov",null,299,650430,0,"No","283",1492]
[211,"04690000","MATCH Charter Public School (District)","Charter District","Charter School Leader","Nnenna Ude","1001 Commonwealth Avenue","","Boston","MA","02215","Ellie Rounds-Bloom","781-338-3128","eleanor.rounds@mass.gov",null,3,3218714,1,"Yes","1054",1159]
[212,"01730000","Mattapoisett","Public School District","Superintendent","Douglas White","135 Marion Rd","","Mattapoisett","MA","02739","Colleen Holforty","781-338-3522","colleen.e.holforty@mass.gov",null,56,119607,4,"Yes","42",424]
[213,"01740000","Maynard","Public School District","Superintendent","Mary Jane Rickson","3-R Tiger Drive","","Maynard","MA","01754","Julia Foodman","781-338-3577","julia.b.foodman@mass.gov",null,442,504851,74,"Yes","280",1226]
[214,"01750000","Medfield","Public School District","Superintendent","Jeffrey Marsden","459 Main St","3rd Fl","Medfield","MA","02052","Beth O'Connell","781-338-3132","elizabeth.a.o'connell@mass.gov",null,null,176255,null,null,null,2577]
[215,"01760000","Medford","Public School District","Superintendent","Marice Edouard-Vincent","489 Winthrop Street","","Medford","MA","02155","Sue Mazzarella","781-338-3587","susan.mazzarella@mass.gov",null,29,2372520,2,"No","763",4054]
[216,"01770000","Medway","Public School District","Superintendent","Armand Pires","45 Holliston Street","","Medway","MA","02053","Alex Lilley","781-338-6212","alex.j.lilley@mass.gov",null,189,274358,0,"Yes","150",2167]
[217,"01780000","Melrose","Public School District","Superintendent","Cyndy Taymore","360 Lynn Fells Pkwy","","Melrose","MA","02176","Ellie Rounds-Bloom","781-338-3128","eleanor.rounds@mass.gov",null,32,439049,0,"Yes","203",3746]
[218,"07100000","Mendon-Upton","Public School District","Superintendent","Joseph Maruszczak","150 North Ave","","Mendon","MA","01756","Alex Lilley","781-338-6212","alex.j.lilley@mass.gov",null,679,218644,0,"Yes","121",2203]
[219,"01810000","Methuen","Public School District","Superintendent","Brandi Kwong","10 Ditson Place","","Methuen","MA","01844","Colleen Holforty","781-338-3522","colleen.e.holforty@mass.gov",null,28,5168895,36,"Yes","2739",6870]
[220,"01820000","Middleborough","Public School District","Superintendent","Brian Lynch","30 Forest Street","","Middleborough","MA","02346","Nancy Labrie","781-338-3536","nancy.h.labrie@mass.gov",null,6,1264168,0,"Yes","681",2966]
[221,"01840000","Middleton","Public School District","Superintendent","Scott Morrison","28 Middleton Road","","Boxford","MA","01921","Russ Fleming","781-338-6259","russellw.fleming@mass.gov",null,746,100232,117,"Yes","27",653]
[222,"01850000","Milford","Public School District","Superintendent","Kevin Mcintyre","31 West Fountain Street","","Milford","MA","01757","Julia Foodman","781-338-3577","julia.b.foodman@mass.gov",null,64,1991998,0,"Yes","1283",4325]
[223,"01860000","Millbury","Public School District","Superintendent","Gregory Myers","12 Martin Street","","Millbury","MA","01527","Beth O'Connell","781-338-3132","elizabeth.a.o'connell@mass.gov",null,18,601494,4,"Yes","425",1645]
[224,"01870000","Millis","Public School District","Superintendent","Nancy Gustafson","245 Plain Street","Central Office","Millis","MA","02054","Sue Mazzarella","781-338-3587","susan.mazzarella@mass.gov",null,76,136495,0,"Yes","70",1143]
[225,"01890000","Milton","Public School District","Superintendent","Mary Gormley","25 Gile Road","","Milton","MA","02186","Alex Lilley","781-338-6212","alex.j.lilley@mass.gov",null,11,433455,0,"No","114",4334]
[226,"08300000","Minuteman Regional Vocational Technical","Public School District","Superintendent","Edward Bouquillon","758 Marrett Rd","","Lexington","MA","02421","Julia Foodman","781-338-3577","julia.b.foodman@mass.gov",null,3,228957,0,"Yes","166",582]
[227,"07170000","Mohawk Trail","Public School District","Superintendent","Patricia Bell","24 Ashfield Rd","","Shelburne Falls","MA","01370","Nancy Labrie","781-338-3536","nancy.h.labrie@mass.gov",null,79,669402,0,"Yes","229",782]
[228,"07120000","Monomoy Regional School District","Public School District","Superintendent","Scott Carpenter","425 Crowell Rd","","Chatham","MA","02633","Ellie Rounds-Bloom","781-338-3128","eleanor.rounds@mass.gov",null,9,653939,6,"Yes","327",1812]
[229,"01910000","Monson","Public School District","Superintendent","Cheryl Clarke","P O Box 159","","Monson","MA","01057","Ellie Rounds-Bloom","781-338-3128","eleanor.rounds@mass.gov",null,15,532626,7,"No","192",862]
[230,"08320000","Montachusett Regional Vocational Technical","Public School District","Superintendent","Sheila Harrity","1050 Westminster Street","","Fitchburg","MA","01420","Beth O'Connell","781-338-3132","elizabeth.a.o'connell@mass.gov",null,2,661823,0,"Yes","517",1415]
[231,"07150000","Mount Greylock","Public School District","Superintendent","Kimberley Grady","1781 Cold Spring Rd","","Williamstown","MA","01267","Russ Fleming","781-338-6259","russellw.fleming@mass.gov",null,0,411657,0,"No","187",1131]
[232,"04700000","Mystic Valley Regional Charter (District)","Charter District","Charter School Leader","Alex Dan","4 Laurel Street","","Malden","MA","02148","Colleen Holforty","781-338-3522","colleen.e.holforty@mass.gov",null,null,85841,null,null,null,1585]
[233,"01960000","Nahant","Public School District","Superintendent","Anthony Pierantozzi","290 Castle Road","","Nahant","MA","01908","Colleen Holforty","781-338-3522","colleen.e.holforty@mass.gov",null,256,85841,0,"Yes","0",121]
[234,"01970000","Nantucket","Public School District","Superintendent","William Cozort","10 Surfside Road","","Nantucket","MA","02554","Nancy Labrie","781-338-3536","nancy.h.labrie@mass.gov",null,3,425461,30,"Yes","405",1617]
[235,"07200000","Narragansett","Public School District","Superintendent","Christopher Casavant","462 Baldwinville Rd","","Baldwinville","MA","01436","Russ Fleming","781-338-6259","russellw.fleming@mass.gov",null,73,551234,1,"Yes",0,1386]
[236,"07250000","Nashoba","Public School District","Superintendent","Brooke Clenchy","50 Mechanic Street","","Bolton","MA","01740","Julia Foodman","781-338-3577","julia.b.foodman@mass.gov",null,5,379968,0,"Yes","191",3133]
[237,"08520000","Nashoba Valley Regional Vocational Technical","Public School District","Superintendent","Denise Pigeon","100 Littleton Road","","Westford","MA","01886","Alex Lilley","781-338-6212","alex.j.lilley@mass.gov",null,177,276955,40,"Yes","198",702]
[238,"01980000","Natick","Public School District","Superintendent","Anna Nolin","13 East Central Street","","Natick","MA","01760","Russ Fleming","781-338-6259","russellw.fleming@mass.gov",null,30,464968,4,"Yes","195",5435]
[239,"06600000","Nauset","Public School District","Superintendent","Thomas Conrad","78 Eldredge Pkwy","","Orleans","MA","02653","Julia Foodman","781-338-3577","julia.b.foodman@mass.gov",null,152,586918,0,"Yes","566",1487]
[240,"01990000","Needham","Public School District","Superintendent","Daniel Gutekanst","1330 Highland Avenue","","Needham","MA","02492","Julia Foodman","781-338-3577","julia.b.foodman@mass.gov",null,66,313310,12,"No","54",5691]
[241,"04440000","Neighborhood House Charter (District)","Charter District","Charter School Leader","Kate Scott","21 Queen Street","","Dorchester","MA","02122","Colleen Holforty","781-338-3522","colleen.e.holforty@mass.gov",null,3604,1912953,1315,"Yes","368",666]
[242,"02010000","New Bedford","Public School District","Superintendent","Thomas Anderson","455 County Street","C/O Paul Rodrigues Administration Bldg.","New Bedford","MA","02740","Beth O'Connell","781-338-3132","elizabeth.a.o'connell@mass.gov",null,91,21137185,5,"Yes","11959",12631]
[243,"35130000","New Heights Charter School of Brockton (District)","Charter District","Charter School Leader","Omari Walker","1690 Main Street","","Brockton","MA","02301","Alex Lilley","781-338-6212","alex.j.lilley@mass.gov",null,0,752850,0,"No","309",619]
[244,"07280000","New Salem-Wendell","Public School District","Superintendent","Jennifer Culkeen","18 Pleasant Street","","Erving","MA","01344","Nancy Labrie","781-338-3536","nancy.h.labrie@mass.gov",null,41,94977,12,"Yes","67",128]
[245,"02040000","Newburyport","Public School District","Superintendent","Sean Gallagher","70 Low Street","","Newburyport","MA","01950","Sue Mazzarella","781-338-3587","susan.mazzarella@mass.gov",null,780,988743,18,"Yes","80",2199]
[246,"02070000","Newton","Public School District","Superintendent","David Fleishman","100 Walnut Street","","Newtonville","MA","02460","Alex Lilley","781-338-6212","alex.j.lilley@mass.gov",null,21,1508665,0,"No","297",12715]
[247,"02080000","Norfolk","Public School District","Superintendent","Ingrid Allardi","70 Boardman Street","","Norfolk","MA","02056","Ellie Rounds-Bloom","781-338-3128","eleanor.rounds@mass.gov",null,1,85841,0,"Yes","24",920]
[248,"09150000","Norfolk County Agricultural","Public School District","Superintendent","Tammy Quinn","400 Main Street","","Walpole","MA","02081","Russ Fleming","781-338-6259","russellw.fleming@mass.gov",null,14,145101,70,"Yes","101",546]
[249,"02090000","North Adams","Public School District","Superintendent","Barbara Malkas","10 Main Street","Second Floor","North Adams","MA","01247","Colleen Holforty","781-338-3522","colleen.e.holforty@mass.gov",null,96,1902168,21,"Yes","711",1246]
[250,"02110000","North Andover","Public School District","Superintendent","Gregg Gilligan","566 Main Street","","North Andover","MA","01845","Russ Fleming","781-338-6259","russellw.fleming@mass.gov",null,113,1287568,89,"Yes","128",4584]
[251,"02120000","North Attleborough","Public School District","Superintendent","Scott Holcomb","6 Morse Street","","North Attleborough","MA","02760","Julia Foodman","781-338-3577","julia.b.foodman@mass.gov",null,0,1652278,0,"No","132",4043]
[252,"02150000","North Brookfield","Public School District","Superintendent","Richard Lind","10 New School Drive","","North Brookfield","MA","01535","Alex Lilley","781-338-6212","alex.j.lilley@mass.gov",null,40,265813,0,"Yes","168",523]
[253,"07350000","North Middlesex","Public School District","Superintendent","Brad Morgan","66 Brookline Street","","Towsend","MA","01469","Alex Lilley","781-338-6212","alex.j.lilley@mass.gov",null,13,977524,2,"Yes","389",3063]
[254,"02170000","North Reading","Public School District","Superintendent","Patrick Daly","189 Park Street","","North Reading","MA","01864","Ellie Rounds-Bloom","781-338-3128","eleanor.rounds@mass.gov",null,92,211096,26,"Yes","175",2361]
[255,"02100000","Northampton","Public School District","Superintendent","John Provost","212 Main Street","","Northampton","MA","01060","Nancy Labrie","781-338-3536","nancy.h.labrie@mass.gov",null,7,1463259,0,"Yes","769",2672]
[256,"04060000","Northampton-Smith Vocational Agricultural","Public School District","Superintendent","Andrew Linkenhoker","80 Locust Street","","Northampton","MA","01060","Julia Foodman","781-338-3577","julia.b.foodman@mass.gov",null,25,338669,0,"No","256",498]
[257,"07300000","Northboro-Southboro","Public School District","Superintendent","Gregory Martineau","53 Parkerville Road","","Southborough","MA","01772","Beth O'Connell","781-338-3132","elizabeth.a.o'connell@mass.gov",null,81,104213,0,"Yes","390",1389]
[258,"02130000","Northborough","Public School District","Superintendent","Gregory Martineau","53 Parkerville Road","","Southborough","MA","01772","Beth O'Connell","781-338-3132","elizabeth.a.o'connell@mass.gov",null,48,165518,9,"Yes",{"$error":"#N/A"},1618]
[259,"02140000","Northbridge","Public School District","Superintendent","Amy McKinstry","87 Linwood Avenue","","Whitinsville","MA","01588","Sue Mazzarella","781-338-3587","susan.mazzarella@mass.gov",null,40,941432,0,"No","696",1965]
[260,"08530000","Northeast Metropolitan Regional Vocational Technical","Public School District","Superintendent","David DiBarri","100 Hemlock Rd","","Wakefield","MA","01880","Ellie Rounds-Bloom","781-338-3128","eleanor.rounds@mass.gov",null,0,931303,0,"Yes","661",1256]
[261,"08510000","Northern Berkshire Regional Vocational Technical","Public School District","Superintendent","James Brosnan","70 Hodges Cross Rd","","North Adams","MA","01247","Alex Chiu","781-338-3586","alexandria.w.chiu@mass.gov",null,29,400166,9,"Yes","259",499]
[262,"02180000","Norton","Public School District","Superintendent","Joseph Baeta","64 West Main Street","","Norton","MA","02766","Colleen Holforty","781-338-3522","colleen.e.holforty@mass.gov",null,5,721176,8,"Yes","389",2341]
[263,"02190000","Norwell","Public School District","Superintendent","Matthew Keegan","322 Main Street","","Norwell","MA","02061","Nancy Labrie","781-338-3536","nancy.h.labrie@mass.gov",null,378,85841,20,"Yes","26",2191]
[264,"02200000","Norwood","Public School District","Superintendent","David Thomson","275 Prospect Street","PO BOX 67","Norwood","MA","02062","Colleen Holforty","781-338-3522","colleen.e.holforty@mass.gov",null,85,1320693,0,"No","517",3429]
[265,"02210000","Oak Bluffs","Public School District","Superintendent","Matthew D'Andrea","4 Pine Street","","Vineyard Haven","MA","02568","Sue Mazzarella","781-338-3587","susan.mazzarella@mass.gov",null,1,665966,0,"No",{"$error":"#N/A"},417]
[266,"08550000","Old Colony Regional Vocational Technical","Public School District","Superintendent","Aaron Polansky","476 North Avenue","","Rochester","MA","02770","Colleen Holforty","781-338-3522","colleen.e.holforty@mass.gov",null,0,153957,4,"Yes","0",547]
[267,"07400000","Old Rochester","Public School District","Superintendent","Douglas White","135 Marion Rd","","Mattapoisett","MA","02739","Colleen Holforty","781-338-3522","colleen.e.holforty@mass.gov",null,13,125001,0,"Yes","80",1161]
[268,"35150000","Old Sturbridge Academy Charter Public School (District)","Charter District","Charter School Leader","Lisa DeTora","2 Old Sturbridge Village Road","","Sturbridge","MA","01566","Colleen Holforty","781-338-3522","colleen.e.holforty@mass.gov",null,9,171783,65,"No","88",240]
[269,"02230000","Orange","Public School District","Superintendent","Tari Thomas","507 S. Main Street","P.O. Box 680","Orange","MA","01364","Julia Foodman","781-338-3577","julia.b.foodman@mass.gov",null,15,639319,1,"No","465",520]
[270,"02240000","Orleans","Public School District","Superintendent","Thomas Conrad","78 Eldredge Pkwy","","Orleans","MA","02653","Julia Foodman","781-338-3577","julia.b.foodman@mass.gov",null,8,85841,15,"Yes",{"$error":"#N/A"},198]
[271,"02260000","Oxford","Public School District","Superintendent","Kristine Nash","4 Maple Road","","Oxford","MA","01540","Alex Lilley","781-338-6212","alex.j.lilley@mass.gov",null,34,1339789,30,"Yes","526",1537]
[272,"02270000","Palmer","Public School District","Superintendent","Patricia Gardner","4107 Main Street","","Palmer","MA","01069","Ellie Rounds-Bloom","781-338-3128","eleanor.rounds@mass.gov",null,0,1208821,0,"Yes","826",1249]
[273,"08600000","Pathfinder Regional Vocational Technical","Public School District","Superintendent","Gerald Paist","240 Sykes Street","","Palmer","MA","01069","Alex Chiu","781-338-3586","alexandria.w.chiu@mass.gov",null,29,451098,0,"Yes","362",615]
[274,"35010000","Paulo Freire Social Justice Charter School (District)","Charter District","Charter School Leader","Isabelina Rodriguez","134 Springfield St","","Chicopee","MA","01013","Julia Foodman","781-338-3577","julia.b.foodman@mass.gov",null,533,975218,112,"Yes","288",275]
[275,"02290000","Peabody","Public School District","Superintendent","Marc Kerble","27 Lowell Street","","Peabody","MA","01960","Sue Mazzarella","781-338-3587","susan.mazzarella@mass.gov",null,28,3353828,6,"Yes","1215",5832]
[276,"02300000","Pelham","Public School District","Superintendent","Michael Morris","170 Chestnut Street","Business Office","Amherst","MA","01002","Ellie Rounds-Bloom","781-338-3128","eleanor.rounds@mass.gov",null,null,85841,null,null,null,123]
[277,"02310000","Pembroke","Public School District","Superintendent","Erin Obey","72 Pilgrim Road","Office of the Superintendent","Pembroke","MA","02359","Alex Chiu","781-338-3586","alexandria.w.chiu@mass.gov",null,7,360495,4,"Yes",{"$error":"#N/A"},2657]
[278,"07450000","Pentucket","Public School District","Superintendent","Justin Bartholomew","22 Main Street","","West Newbury","MA","01985","Colleen Holforty","781-338-3522","colleen.e.holforty@mass.gov",null,38,872507,0,"No","104",2321]
[279,"02340000","Petersham","Public School District","Superintendent","Tari Thomas","P O Box 148","","Petersham","MA","01366","Julia Foodman","781-338-3577","julia.b.foodman@mass.gov",null,null,85841,null,null,null,133]
[280,"35180000","Phoenix Academy Public Charter High School Lawrence (District)","Charter District","Charter School Leader","Beth Anderson","15 Union Street","","Lawrence","MA","01840","Ellie Rounds-Bloom","781-338-3128","eleanor.rounds@mass.gov",null,41,373969,0,"No","136",171]
[281,"35080000","Phoenix Academy Public Charter High School Springfield (District)","Charter District","Charter School Leader","Beth Anderson","65 Lincoln Street","","Springfield","MA","01105","Ellie Rounds-Bloom","781-338-3128","eleanor.rounds@mass.gov",null,123,726972,64,"No","193",193]
[282,"04930000","Phoenix Charter Academy (District)","Charter District","Charter School Leader","Beth Anderson","175 Hawthorne Street","","Chelsea","MA","02150","Ellie Rounds-Bloom","781-338-3128","eleanor.rounds@mass.gov",null,213,314270,0,"No","149",204]
[283,"04940000","Pioneer Charter School of Science (District)","Charter District","Charter School Leader","Barish Icin","51-59 Summer Street","","Everett","MA","02149","Colleen Holforty","781-338-3522","colleen.e.holforty@mass.gov",null,87,663311,0,"Yes","459",783]
[284,"35060000","Pioneer Charter School of Science II (PCSS-II) (District)","Charter District","Charter School Leader","Barish Icin","97 Main Street","","Saugus","MA","01906","Colleen Holforty","781-338-3522","colleen.e.holforty@mass.gov",null,1,224488,0,"Yes","459",359]
[285,"07500000","Pioneer Valley","Public School District","Superintendent","Jonathan Scagel","97 F Sumner Turner Road","","Northfield","MA","01360","Nancy Labrie","781-338-3536","nancy.h.labrie@mass.gov",null,15,283544,0,"No",{"$error":"#N/A"},661]
[286,"04970000","Pioneer Valley Chinese Immersion Charter (District)","Charter District","Charter School Leader","Kathleen Wang","317 Russell Street","","Hadley","MA","01035","Beth O'Connell","781-338-3132","elizabeth.a.o'connell@mass.gov",null,2,300467,0,"No","136",534]
[287,"04790000","Pioneer Valley Performing Arts Charter Public (District)","Charter District","Charter School Leader","Marc Kenen","15 Mulligan Drive","","South Hadley","MA","01075","Beth O'Connell","781-338-3132","elizabeth.a.o'connell@mass.gov",null,237,326826,0,"Yes","160",394]
[288,"02360000","Pittsfield","Public School District","Superintendent","Jason Mccandless","269 First Street","","Pittsfield","MA","01201","Beth O'Connell","781-338-3132","elizabeth.a.o'connell@mass.gov",null,29,5862021,1,"No","1403",5180]
[289,"02380000","Plainville","Public School District","Superintendent","David Raiche","68 Messenger Street","","Plainville","MA","02762","Sue Mazzarella","781-338-3587","susan.mazzarella@mass.gov",null,137,183847,86,"Yes","182",662]
[290,"02390000","Plymouth","Public School District","Superintendent","Gary Maestas","11 Lincoln Street","","Plymouth","MA","02360","Sue Mazzarella","781-338-3587","susan.mazzarella@mass.gov",null,0,2758809,0,"Yes","457",7240]
[291,"02400000","Plympton","Public School District","Superintendent","Jill Proulx","250 Pembroke Street","","Kingston","MA","02364","Nancy Labrie","781-338-3536","nancy.h.labrie@mass.gov",null,127,85841,17,"No",{"$error":"#N/A"},219]
[292,"04870000","Prospect Hill Academy Charter (District)","Charter District","Charter School Leader","Angela Allen","50 Essex Street","","Cambridge","MA","02139","Alex Lilley","781-338-6212","alex.j.lilley@mass.gov",null,22,1028636,22,"No","646",1100]
[293,"02420000","Provincetown","Public School District","Superintendent","Suzanne Scallion","Provincetown Schools","","Provincetown","MA","02657","Colleen Holforty","781-338-3522","colleen.e.holforty@mass.gov",null,6,274719,0,"Yes","66",111]
[294,"07530000","Quabbin","Public School District","Superintendent","Sheila Muir","872 South Street","","Barre","MA","01005","Russ Fleming","781-338-6259","russellw.fleming@mass.gov",null,12,719718,5,"Yes","317",2103]
[295,"07780000","Quaboag Regional","Public School District","Superintendent","Brett Kustigian","284 Old West Brookfield Road","PO Box 1538","Warren","MA","01083","Sue Mazzarella","781-338-3587","susan.mazzarella@mass.gov",null,1546,740475,0,"Yes","269",1186]
[296,"02430000","Quincy","Public School District","Superintendent","Richard Decristofaro","34 Coddington Street","","Quincy","MA","02169","Nancy Labrie","781-338-3536","nancy.h.labrie@mass.gov",null,6,7148382,3,"Yes","786",9417]
[297,"07550000","Ralph C Mahar","Public School District","Superintendent","Tari Thomas","507 South Main Street","","Orange","MA","01364","Julia Foodman","781-338-3577","julia.b.foodman@mass.gov",null,442,418312,0,"Yes","378",651]
[298,"02440000","Randolph","Public School District","Superintendent","Thea Stovell","40 Highland Avenue","","Randolph","MA","02368","Russ Fleming","781-338-6259","russellw.fleming@mass.gov",null,42,3067035,0,"Yes","770",2745]
[299,"02460000","Reading","Public School District","Superintendent","John Doherty","82 Oakland Road","","Reading","MA","01867","Julia Foodman","781-338-3577","julia.b.foodman@mass.gov",null,1677,383259,174,"Yes","111",4087]
[300,"02480000","Revere","Public School District","Superintendent","Dianne Kelly","101 School Street","","Revere","MA","02151","Beth O'Connell","781-338-3132","elizabeth.a.o'connell@mass.gov",null,3,8676344,0,"No","5592",7429]
[301,"02490000","Richmond","Public School District","Superintendent","Peter Dillon","1831 State Road","","Richmond","MA","01254","Julia Foodman","781-338-3577","julia.b.foodman@mass.gov",null,null,85841,null,null,null,155]
[302,"04830000","Rising Tide Charter Public (District)","Charter District","Charter School Leader","Michael O'Keefe","59 Armstrong Road","","Plymouth","MA","02360","Colleen Holforty","781-338-3522","colleen.e.holforty@mass.gov",null,1,149830,0,"No","109",642]
[303,"04820000","River Valley Charter (District)","Charter District","Charter School Leader","Jonnie Lyn Evans","2 Perry Way","","Newburyport","MA","01950","Ellie Rounds-Bloom","781-338-3128","eleanor.rounds@mass.gov",null,2,100530,0,"Yes","38",288]
[304,"02500000","Rochester","Public School District","Superintendent","Douglas White","135 Marion Rd","","Mattapoisett","MA","02739","Colleen Holforty","781-338-3522","colleen.e.holforty@mass.gov",null,152,85841,30,"Yes","112",485]
[305,"02510000","Rockland","Public School District","Superintendent","Alan Cron","34 MacKinlay Way","","Rockland","MA","02370","Ellie Rounds-Bloom","781-338-3128","eleanor.rounds@mass.gov",null,13,1046927,2,"Yes","548",2232]
[306,"02520000","Rockport","Public School District","Superintendent","Robert Liebow","24 Jerdens Lane","","Rockport","MA","01966","Colleen Holforty","781-338-3522","colleen.e.holforty@mass.gov",null,0,411642,0,"No","139",840]
[307,"02530000","Rowe","Public School District","Superintendent","John Franzoni","86 Pond Road","","Rowe","MA","01367","Sue Mazzarella","781-338-3587","susan.mazzarella@mass.gov",null,305,85841,0,"No",{"$error":"#N/A"},63]
[308,"04840000","Roxbury Preparatory Charter (District)","Charter District","Charter School Leader","John Verrilli","120 Fisher Avenue","","Roxbury","MA","02120","Nancy Labrie","781-338-3536","nancy.h.labrie@mass.gov",null,96,4606257,0,"No","1328",1525]
[309,"04410000","Sabis International Charter (District)","Charter District","Charter School Leader","Maretta Thomsen","160 Joan Street","","Springfield","MA","01129","Alex Lilley","781-338-6212","alex.j.lilley@mass.gov",null,483,2581728,230,"Yes","946",1572]
[310,"02580000","Salem","Public School District","Superintendent","Kathleen Smith","29 Highland Avenue","","Salem","MA","01970","Colleen Holforty","781-338-3522","colleen.e.holforty@mass.gov",null,21,4124098,0,"Yes","1265",3578]
[311,"04850000","Salem Academy Charter (District)","Charter District","Charter School Leader","Kathy Egmont","45 Congress Street","c/o Shetland Pk","Salem","MA","01970","Colleen Holforty","781-338-3522","colleen.e.holforty@mass.gov",null,30,411911,13,"Yes","229",491]
[312,"02610000","Sandwich","Public School District","Superintendent","Pamela Gould","33 Water Street","","Sandwich","MA","02563","Julia Foodman","781-338-3577","julia.b.foodman@mass.gov",null,168,1055859,24,"Yes","373",2449]
[313,"02620000","Saugus","Public School District","Superintendent","David DeRuosi","23 Main Street","","Saugus","MA","01906","Beth O'Connell","781-338-3132","elizabeth.a.o'connell@mass.gov",null,0,1457574,0,"No","1183",2525]
[314,"02630000","Savoy","Public School District","Superintendent","John Franzoni","26 Chapel Road","","Savoy","MA","01256","Sue Mazzarella","781-338-3587","susan.mazzarella@mass.gov",null,13,85841,10,"Yes",{"$error":"#N/A"},47]
[315,"02640000","Scituate","Public School District","Superintendent","Ronald Griffin","606 C J Cushing Hwy","","Scituate","MA","02066","Alex Lilley","781-338-6212","alex.j.lilley@mass.gov",null,66,281124,0,"Yes","126",2933]
[316,"02650000","Seekonk","Public School District","Superintendent","Richard Drolet","25 Water Lane","","Seekonk","MA","02771","Ellie Rounds-Bloom","781-338-3128","eleanor.rounds@mass.gov",null,180,642176,9,"No","336",2060]
[317,"02660000","Sharon","Public School District","Superintendent","Victoria Greer","75 Mountain Street","","Sharon","MA","02067","Colleen Holforty","781-338-3522","colleen.e.holforty@mass.gov",null,145,248414,9,"Yes","125",3628]
[318,"08710000","Shawsheen Valley Regional Vocational Technical","Public School District","Superintendent","Melanie Hagman","100 Cook Street","","Billerica","MA","01821","Alex Chiu","781-338-3586","alexandria.w.chiu@mass.gov",null,1,317659,6,"Yes","298",1256]
[319,"02690000","Sherborn","Public School District","Superintendent","Andrew Keough","157 Farm Street","","Dover","MA","02030","Beth O'Connell","781-338-3132","elizabeth.a.o'connell@mass.gov",null,11,85841,0,"No","34",383]
[320,"02710000","Shrewsbury","Public School District","Superintendent","Joseph Sawyer","100 Maple Avenue","","Shrewsbury","MA","01545","Russ Fleming","781-338-6259","russellw.fleming@mass.gov",null,169,557280,18,"Yes","133",6127]
[321,"02720000","Shutesbury","Public School District","Superintendent","Jennifer Culkeen","18 Pleasant Street","","Erving","MA","01344","Nancy Labrie","781-338-3536","nancy.h.labrie@mass.gov",null,1,85841,0,"No","66",109]
[322,"07600000","Silver Lake","Public School District","Superintendent","Jill Proulx","250 Pembroke Street","","Kingston","MA","02364","Nancy Labrie","781-338-3536","nancy.h.labrie@mass.gov",null,10,202589,17,"Yes","871",1609]
[323,"04740000","Sizer School: A North Central Charter Essential (District)","Charter District","Charter School Leader","Frederick Randall","500 Rindge Road","","Fitchburg","MA","01420","Nancy Labrie","781-338-3536","nancy.h.labrie@mass.gov",null,4,328473,15,"No","194",356]
[324,"02730000","Somerset","Public School District","Superintendent","Jeffrey Schoonover","580 Whetstone Hill Road","","Somerset","MA","02726","Russ Fleming","781-338-6259","russellw.fleming@mass.gov",null,17,645498,0,"Yes","94",1714]
[325,"07630000","Somerset Berkley Regional School District","Public School District","Superintendent","Jeffrey Schoonover","580 Whetstone Hill","","Somerset","MA","02726","Russ Fleming","781-338-6259","russellw.fleming@mass.gov",null,2,124231,0,"Yes","132",1029]
[326,"02740000","Somerville","Public School District","Superintendent","Mary Skipper","8 Bonair Street","","Somerville","MA","02145","Colleen Holforty","781-338-3522","colleen.e.holforty@mass.gov",null,930,3710540,0,"Yes","2203",4647]
[327,"02780000","South Hadley","Public School District","Superintendent","Diana Bonneville","116 Main Street","","South Hadley","MA","01075","Nancy Labrie","781-338-3536","nancy.h.labrie@mass.gov",null,78,691811,28,"Yes","302",1843]
[328,"08290000","South Middlesex Regional Vocational Technical","Public School District","Superintendent","Jonathan Evans","750 Winter Street","","Framingham","MA","01702","Russ Fleming","781-338-6259","russellw.fleming@mass.gov",null,102,701215,11,"No","522",781]
[329,"04880000","South Shore Charter Public (District)","Charter District","Charter School Leader","Alicia Savage","100 Longwater Circle","","Norwell","MA","02061","Sue Mazzarella","781-338-3587","susan.mazzarella@mass.gov",null,141,357527,0,"No","285",1001]
[330,"08730000","South Shore Regional Vocational Technical","Public School District","Superintendent","Thomas Hickey","476 Webster Street","","Hanover","MA","02339","Beth O'Connell","781-338-3132","elizabeth.a.o'connell@mass.gov",null,3,217722,0,"Yes","0",632]
[331,"02750000","Southampton","Public School District","Superintendent","Aaron Osborne","19 Stage Rd","","Westhampton","MA","01027","Nancy Labrie","781-338-3536","nancy.h.labrie@mass.gov",null,10,114583,0,"Yes",{"$error":"#N/A"},448]
[332,"02760000","Southborough","Public School District","Superintendent","Gregory Martineau","53 Parkerville Road","","Southborough","MA","01772","Beth O'Connell","781-338-3132","elizabeth.a.o'connell@mass.gov",null,76,135238,0,"Yes",{"$error":"#N/A"},1214]
[333,"02770000","Southbridge","Public School District","Superintendent","Jeffrey Villar","25 Cole Avenue","","Southbridge","MA","01550","Ellie Rounds-Bloom","781-338-3128","eleanor.rounds@mass.gov",null,444,2902015,55,"Yes","1930",1857]
[334,"08720000","Southeastern Regional Vocational Technical","Public School District","Superintendent","Luis Lopes","250 Foundry Street","","South Easton","MA","02375","Julia Foodman","781-338-3577","julia.b.foodman@mass.gov",null,15,798324,8,"No","750",1442]
[335,"07650000","Southern Berkshire","Public School District","Superintendent","Beth Regulbuto","PO BOX 339","","Sheffield","MA","01257","Alex Lilley","781-338-6212","alex.j.lilley@mass.gov",null,11,571236,6,"Yes","160",629]
[336,"08760000","Southern Worcester County Regional Vocational Technical","Public School District","Superintendent","John LaFleche","57 Old Muggett Hill Road","","Charlton","MA","01507","Alex Chiu","781-338-3586","alexandria.w.chiu@mass.gov",null,6,457033,0,"Yes","403",1119]
[337,"07660000","Southwick-Tolland-Granville Regional School District","Public School District","Superintendent","Jennifer Willard","86 Powder Mill Road","","Southwick","MA","01077","Ellie Rounds-Bloom","781-338-3128","eleanor.rounds@mass.gov",null,49,919856,0,"Yes","138",1448]
[338,"07670000","Spencer-E Brookfield","Public School District","Superintendent","Paul Haughey","306 Main Street","","Spencer","MA","01562","Colleen Holforty","781-338-3522","colleen.e.holforty@mass.gov",null,61,739534,15,"Yes","643",1354]
[339,"02810000","Springfield","Public School District","Superintendent","Daniel Warwick","1550 Main Street","","Springfield","MA","01103","Alex Lilley","781-338-6212","alex.j.lilley@mass.gov",null,4101,69561714,1398,"Yes","19849",23408]
[340,"35100000","Springfield Preparatory Charter School (District)","Charter District","Charter School Leader","Bill Spirer","594 Converse St.","","Longmeadow","MA","01106","Beth O'Connell","781-338-3132","elizabeth.a.o'connell@mass.gov",null,55,1078088,0,"Yes","270",325]
[341,"02840000","Stoneham","Public School District","Superintendent","John Macero","149 Franklin Street","","Stoneham","MA","02180","Julia Foodman","781-338-3577","julia.b.foodman@mass.gov",null,85,461442,8,"Yes","401",2302]
[342,"02850000","Stoughton","Public School District","Superintendent","John Marcus","232 Pearl Street","","Stoughton","MA","02072","Beth O'Connell","781-338-3132","elizabeth.a.o'connell@mass.gov",null,257,1700999,50,"Yes","256",3424]
[343,"02870000","Sturbridge","Public School District","Superintendent","Erin Nosek","320 Brookfield Rd","","Fiskdale","MA","01518","Russ Fleming","781-338-6259","russellw.fleming@mass.gov",null,12,254752,3,"Yes",{"$error":"#N/A"},820]
[344,"04890000","Sturgis Charter Public (District)","Charter District","Charter School Leader","Paul Marble","427 Main Street","","Hyannis","MA","02601","Alex Lilley","781-338-6212","alex.j.lilley@mass.gov",null,null,85841,null,null,null,846]
[345,"02880000","Sudbury","Public School District","Superintendent","Brad Crozier","40 Fairbank Road","","Sudbury","MA","01776","Alex Lilley","781-338-6212","alex.j.lilley@mass.gov",null,58,233825,0,"Yes","144",2653]
[346,"02890000","Sunderland","Public School District","Superintendent","Darius Modestow","113 North Main Street, Office C101","","South Deerfield","MA","01373","Alex Lilley","781-338-6212","alex.j.lilley@mass.gov",null,16,85841,0,"Yes",{"$error":"#N/A"},202]
[347,"02900000","Sutton","Public School District","Superintendent","Theodore Friend","383 Boston Rd","","Sutton","MA","01590","Russ Fleming","781-338-6259","russellw.fleming@mass.gov",null,14,130395,2,"Yes","40",1339]
[348,"02910000","Swampscott","Public School District","Superintendent","Pamela Angelakis","207 Forest Avenue","","Swampscott","MA","01907","Nancy Labrie","781-338-3536","nancy.h.labrie@mass.gov",null,119,645485,8,"Yes","322",2175]
[349,"02920000","Swansea","Public School District","Superintendent","John Robidoux","1 Gardners Neck Road","","Swansea","MA","02777","Russ Fleming","781-338-6259","russellw.fleming@mass.gov",null,7,911543,16,"Yes","181",2046]
[350,"07700000","Tantasqua","Public School District","Superintendent","Erin Nosek","320A Brookfield Rd","","Fiskdale","MA","01518","Russ Fleming","781-338-6259","russellw.fleming@mass.gov",null,7,418955,13,"Yes","790",1781]
[351,"02930000","Taunton","Public School District","Superintendent","John Cabral","215 Harris Street","","Taunton","MA","02780","Julia Foodman","781-338-3577","julia.b.foodman@mass.gov",null,413,7581032,138,"Yes","2321",7851]
[352,"39020000","TEC Connections Academy Commonwealth Virtual School District","Public School District","Superintendent","Patrick Lattuca","141 Mansion Drive","","East Walpole","MA","02032","Russ Fleming","781-338-6259","russellw.fleming@mass.gov",null,40,2901610,0,"Yes","1648",2294]
[353,"02950000","Tewksbury","Public School District","Superintendent","Christopher Malone","139 Pleasant Street","","Tewksbury","MA","01876","Beth O'Connell","781-338-3132","elizabeth.a.o'connell@mass.gov",null,57,1198356,16,"Yes","312",3208]
[354,"02960000","Tisbury","Public School District","Superintendent","Matthew D'Andrea","4 Pine Street","","Vineyard Haven","MA","02568","Sue Mazzarella","781-338-3587","susan.mazzarella@mass.gov",null,63,234288,0,"No",{"$error":"#N/A"},290]
[355,"02980000","Topsfield","Public School District","Superintendent","Scott Morrison","28 Middleton Road","","Boxford","MA","01921","Russ Fleming","781-338-6259","russellw.fleming@mass.gov",null,2,315724,0,"Yes","35",605]
[356,"08780000","Tri-County Regional Vocational Technical","Public School District","Superintendent","Stephen Dockray","147 Pond Street","","Franklin","MA","02038","Alex Lilley","781-338-6212","alex.j.lilley@mass.gov",null,1,285862,11,"No","298",958]
[357,"07730000","Triton","Public School District","Superintendent","Brian Forget","112 Elm Street","","Byfield","MA","01922","Russ Fleming","781-338-6259","russellw.fleming@mass.gov",null,26,852220,225,"Yes","286",2264]
[358,"03000000","Truro","Public School District","Superintendent","Michael Gradone","P O Box 2029","","Truro","MA","02666","Ellie Rounds-Bloom","781-338-3128","eleanor.rounds@mass.gov",null,0,85841,0,"No","43",95]
[359,"03010000","Tyngsborough","Public School District","Superintendent","Michael Flanagan","50 Norris Rd","","Tyngsborough","MA","01879","Colleen Holforty","781-338-3522","colleen.e.holforty@mass.gov",null,41,228355,5,"Yes","184",1606]
[360,"04800000","UP Academy Charter School of Boston (District)","Charter District","Charter School Leader","Rashidah Lawson","215 Dorchester Street","","Boston","MA","02127","Ellie Rounds-Bloom","781-338-3128","eleanor.rounds@mass.gov",null,150,1891342,0,"Yes","501",404]
[361,"35050000","UP Academy Charter School of Dorchester (District)","Charter District","Charter School Leader","Erica Andrew","35 Westville Street","","Boston","MA","02124","Ellie Rounds-Bloom","781-338-3128","eleanor.rounds@mass.gov",null,206,2182930,0,"No","646",636]
[362,"07740000","Up-Island Regional","Public School District","Superintendent","Matthew D'Andrea","4 Pine Street","","Vineyard Haven","MA","02568","Sue Mazzarella","781-338-3587","susan.mazzarella@mass.gov",null,23,184395,0,"Yes",{"$error":"#N/A"},395]
[363,"08790000","Upper Cape Cod Regional Vocational Technical","Public School District","Superintendent","Robert Dutch","220 Sandwich Rd","","Bourne","MA","02532","Ellie Rounds-Bloom","781-338-3128","eleanor.rounds@mass.gov",null,0,314600,5,"No",{"$error":"#N/A"},693]
[364,"03040000","Uxbridge","Public School District","Superintendent","Frank Tiano","9 North Main Street","","Uxbridge","MA","01569","Nancy Labrie","781-338-3536","nancy.h.labrie@mass.gov",null,28,947003,0,"Yes","322",1650]
[365,"04980000","Veritas Preparatory Charter School (District)","Charter District","Charter School Leader","Rachel Romano","370 Pine Street","","Springfield","MA","01105","Sue Mazzarella","781-338-3587","susan.mazzarella@mass.gov",null,27,1486869,0,"Yes","348",371]
[366,"07750000","Wachusett","Public School District","Superintendent","Darryll McCall","1745 Main Street","c/o Jefferson School","Jefferson","MA","01522","Beth O'Connell","781-338-3132","elizabeth.a.o'connell@mass.gov",null,122,617702,7,"Yes","226",6929]
[367,"03050000","Wakefield","Public School District","Superintendent","Douglas Lyons","60 Farm Street","","Wakefield","MA","01880","Russ Fleming","781-338-6259","russellw.fleming@mass.gov",null,78,376113,0,"Yes","571",3372]
[368,"03060000","Wales","Public School District","Superintendent","Erin Nosek","320 Brookfield Rd","","Fiskdale","MA","01518","Russ Fleming","781-338-6259","russellw.fleming@mass.gov",null,0,124700,1,"Yes",{"$error":"#N/A"},122]
[369,"03070000","Walpole","Public School District","Superintendent","Bridget Gough","135 School Street","","Walpole","MA","02081","Beth O'Connell","781-338-3132","elizabeth.a.o'connell@mass.gov",null,118,430553,0,"Yes","208",3669]
[370,"03080000","Waltham","Public School District","Superintendent","George Frost","617 Lexington Street","","Waltham","MA","02452","Sue Mazzarella","781-338-3587","susan.mazzarella@mass.gov",null,1312,2453729,0,"Yes","1814",5702]
[371,"03090000","Ware","Public School District","Superintendent","Marlene Di Leo","P O Box 240","","Ware","MA","01082","Alex Lilley","781-338-6212","alex.j.lilley@mass.gov",null,12,1049848,0,"Yes","541",1103]
[372,"03100000","Wareham","Public School District","Superintendent","Kimberly Shaver-Hood","48 Marion Road","","Wareham","MA","02571","Ellie Rounds-Bloom","781-338-3128","eleanor.rounds@mass.gov",null,29,1848279,43,"Yes","725",2046]
[373,"03140000","Watertown","Public School District","Superintendent","Deanne Galdston","30 Common Street","","Watertown","MA","02472","Colleen Holforty","781-338-3522","colleen.e.holforty@mass.gov",null,337,1239158,9,"Yes","736",2568]
[374,"03150000","Wayland","Public School District","Superintendent","Arthur Unobskey","41 Cochituate Rd","","Wayland","MA","01778","Nancy Labrie","781-338-3536","nancy.h.labrie@mass.gov",null,109,192425,0,"Yes","80",2737]
[375,"03160000","Webster","Public School District","Superintendent","Ruthann Petruno-Goguen","77 Poland Street","","Webster","MA","01570","Russ Fleming","781-338-6259","russellw.fleming@mass.gov",null,168,2070166,45,"Yes","1521",1780]
[376,"03170000","Wellesley","Public School District","Superintendent","David Lussier","40 Kingsbury Street","","Wellesley","MA","02481","Julia Foodman","781-338-3577","julia.b.foodman@mass.gov",null,116,447227,8,"Yes","204",4821]
[377,"03180000","Wellfleet","Public School District","Superintendent","Thomas Conrad","78 Eldredge Pkwy","","Orleans","MA","02653","Julia Foodman","781-338-3577","julia.b.foodman@mass.gov",null,1,85841,1,"Yes",{"$error":"#N/A"},105]
[378,"03220000","West Boylston","Public School District","Superintendent","Elizabeth Schaper","125 Crescent Street","","West Boylston","MA","01583","Alex Lilley","781-338-6212","alex.j.lilley@mass.gov",null,30,306216,0,"Yes","149",880]
[379,"03230000","West Bridgewater","Public School District","Superintendent","Patricia Oakley","2 Spring Street","","West Bridgewater","MA","02379","Ellie Rounds-Bloom","781-338-3128","eleanor.rounds@mass.gov",null,20,239185,4,"Yes","168",1313]
[380,"03320000","West Springfield","Public School District","Superintendent","Timothy Connor","26 Central Street","","West Springfield","MA","01089","Alex Lilley","781-338-6212","alex.j.lilley@mass.gov",null,436,4342659,176,"Yes","2026",3984]
[381,"03210000","Westborough","Public School District","Superintendent","Amber Bock","45 West Main Street","","Westborough","MA","01581","Sue Mazzarella","781-338-3587","susan.mazzarella@mass.gov",null,406,292495,0,"Yes","138",3849]
[382,"03250000","Westfield","Public School District","Superintendent","Stefan Czaporowski","94 North Elm Street","Suite 101","Westfield","MA","01085","Alex Lilley","781-338-6212","alex.j.lilley@mass.gov",null,311,4808471,78,"Yes","3029",5116]
[383,"03260000","Westford","Public School District","Superintendent","Everett Olsen","23 Depot Street","","Westford","MA","01886","Nancy Labrie","781-338-3536","nancy.h.labrie@mass.gov",null,null,271511,null,null,null,4874]
[384,"03270000","Westhampton","Public School District","Superintendent","Aaron Osborne","19 Stage Rd","","Westhampton","MA","01027","Nancy Labrie","781-338-3536","nancy.h.labrie@mass.gov",null,null,85841,null,null,null,111]
[385,"03300000","Weston","Public School District","Superintendent","Midge Connolly","89 Wellesley Street","","Weston","MA","02493","Julia Foodman","781-338-3577","julia.b.foodman@mass.gov",null,69,827229,0,"Yes","66",2020]
[386,"03310000","Westport","Public School District","Superintendent","Gary Reese","17 Main Rd","","Westport","MA","02790","Beth O'Connell","781-338-3132","elizabeth.a.o'connell@mass.gov",null,14,698900,0,"Yes","344",1371]
[387,"03350000","Westwood","Public School District","Superintendent","Emily Parks","220 Nahatan Street","","Westwood","MA","02090","Alex Lilley","781-338-6212","alex.j.lilley@mass.gov",null,null,85841,null,null,null,2973]
[388,"03360000","Weymouth","Public School District","Superintendent","Jennifer Curtis-Whipple","111 Middle Street","","Weymouth","MA","02189","Ellie Rounds-Bloom","781-338-3128","eleanor.rounds@mass.gov",null,252,2911054,120,"Yes","1171",5670]
[389,"03370000","Whately","Public School District","Superintendent","Darius Modestow","113 North Main Street, Office C101","","South Deerfield","MA","01373","Alex Lilley","781-338-6212","alex.j.lilley@mass.gov",null,null,85841,null,null,null,108]
[390,"07800000","Whitman-Hanson","Public School District","Superintendent","Jeffrey Szymaniak","610 Franklin Street","","Whitman","MA","02382","Alex Lilley","781-338-6212","alex.j.lilley@mass.gov",null,38,1001704,14,"Yes","355",3714]
[391,"08850000","Whittier Regional Vocational Technical","Public School District","Superintendent","Maureen Lynch","115 Amesbury Line Rd","","Haverhill","MA","01830","Colleen Holforty","781-338-3522","colleen.e.holforty@mass.gov",null,14,839794,18,"Yes","565",1246]
[392,"03400000","Williamsburg","Public School District","Superintendent","Aaron Osborne","19 Stage Rd","","Westhampton","MA","01027","Nancy Labrie","781-338-3536","nancy.h.labrie@mass.gov",null,5,85841,0,"Yes",{"$error":"#N/A"},135]
[393,"03420000","Wilmington","Public School District","Superintendent","Glenn Brand","161 Church Street","","Wilmington","MA","01887","Alex Chiu","781-338-3586","alexandria.w.chiu@mass.gov",null,36,370504,23,"Yes","128",3134]
[394,"03430000","Winchendon","Public School District","Superintendent","Joan Landers","175 Grove Street","","Winchendon","MA","01475","Beth O'Connell","781-338-3132","elizabeth.a.o'connell@mass.gov",null,8,1053630,28,"Yes","764",1171]
[395,"03440000","Winchester","Public School District","Superintendent","Judith Evans","40 Samoset Road","","Winchester","MA","01890","Sue Mazzarella","781-338-3587","susan.mazzarella@mass.gov",null,125,348963,16,"Yes","53",4665]
[396,"03460000","Winthrop","Public School District","Superintendent","Lisa Howard","1 Metcalf Square","","Winthrop","MA","02152","Alex Lilley","781-338-6212","alex.j.lilley@mass.gov",null,162,1332222,15,"Yes","789",1927]
[397,"03470000","Woburn","Public School District","Superintendent","Matthew Crowley","55 Locust Street","","Woburn","MA","01801","Ellie Rounds-Bloom","781-338-3128","eleanor.rounds@mass.gov",null,321,1960160,0,"Yes","710",4364]
[398,"03480000","Worcester","Public School District","Superintendent","Maureen Binienda","20 Irving Street","","Worcester","MA","01609","Russ Fleming","781-338-6259","russellw.fleming@mass.gov",null,7774,34815950,3178,"Yes","20899",24383]
[399,"03490000","Worthington","Public School District","Superintendent","Gretchen Morse-Dobosz","147 Huntington Road","","Worthington","MA","01098","Nancy Labrie","781-338-3536","nancy.h.labrie@mass.gov",null,0,85841,0,"No",{"$error":"#N/A"},72]
[400,"03500000","Wrentham","Public School District","Superintendent","Allan Cameron","120 Taunton Street","","Wrentham","MA","02093","Russ Fleming","781-338-6259","russellw.fleming@mass.gov",null,23,101265,0,"Yes","78",872]

{"sheet":"Data Collection","index":12,"n_rows":10,"n_cols":29,"rows_kept":10,"cut":false,"hidden":true,"merged":[[0,28,8,28],[0,9,8,9],[0,0,8,0],[0,1,8,1],[0,10,8,10],[0,11,8,11],[0,12,8,12],[0,13,8,13],[0,14,8,14],[0,19,8,19],[0,20,8,20],[0,21,8,21],[0,26,8,26],[0,27,8,27],[0,22,8,22],[0,23,8,23],[0,24,8,24],[0,25,8,25],[0,7,8,7],[0,8,8,8],[0,16,8,16],[0,17,8,17],[0,18,8,18],[0,15,8,15],[0,2,8,2],[0,3,8,3],[0,4,8,4],[0,5,8,5],[0,6,8,6]]}
["Org Code","District Name","\n     •  ESSA (Titles I-VI),\n            \n                                        ","                •   IDEA, ","    •  Carl D. Perkins Career and Technical Education Act of 2006, ","  •  Subtitle B of title VII of the McKinney-Vento Homeless Assistance Act, or","         •  Adult Education and Family Literacy Act."," 2.    Educational technology (including hardware, software, and connectivity) for students. "," 3.  Supplies and services that enable remote learning (printing, telephonic support, translation services, etc.)"," 4.   Mental health services and supports. ","·         low-income children or students, ","·         children with disabilities, ","·         English learners, ","·         racial and ethnic minorities, ","·         students experiencing homelessness, and ","·         foster care youth."," 6.  Diagnostic intake assessments to gauge students’ knowledge and skills (i.e. early literacy screening, etc.)."," 7.  Assessing and addressing learning gaps to inform teaching."," 8.  Planning and implementing activities related to summer learning and supplemental afterschool programs"," 9.       Providing principals and others school leaders with the resources to address individual school needs. "," 10.   Training and professional development for district staff on any topic from effective remote learning strategies to sanitation \nand minimizing the street of infectious disease when school resumes."," 11.   Services and supplies to sanitize district facilities. "," 12.   Planning for and coordinating during long-term closures, including:","·         how to provide meals to eligible students, ","·         how to provide technology for online learning to all students, ","·         how to provide guidance for carrying out requirements under the IDEA and","                  ·         how to ensure other educational services can continue to be provided consistent with all Federal, State, and local                              requirements. "," 13.  Procedures and coordination systems to improve district preparedness and response efforts to COVID-19."," 14.   Other activities necessary to maintain district operations and services and to continue to employ         existing district staff. "]
[]
[]
[]
[]
[]
[]
[]
[]
[{"$f":"valorg4code","v":"DIST"},{"$f":"valDistrName","v":"OrgName"},{"$f":"Exp_ESSA","v":"Select "},{"$f":"Exp_IDEA","v":"Select "},{"$f":"Exp_Perk","v":"Select "},{"$f":"Exp_MV","v":"Select "},{"$f":"Exp_AEFLA","v":"Select "},{"$f":"Exp_EdTech","v":"Select "},{"$f":"Exp_Remote","v":"Select "},{"$f":"Exp_MH","v":"Yes"},{"$f":"Exp_LowInc","v":"Select "},{"$f":"Exp_SWD","v":"Select "},{"$f":"Exp_EL","v":"Select "},{"$f":"Exp_Minor","v":"Select "},{"$f":"Exp_Hmless","v":"Select "},{"$f":"Exp_Foster","v":"Select "},{"$f":"Exp_DiagTest","v":"Select "},{"$f":"Exp_learninggap","v":0},{"$f":"Exp_ASOS","v":"Select "},{"$f":"Exp_Principals","v":"Select "},{"$f":"Exp_PD","v":"Select "},{"$f":"Exp_Sani","v":"Select "},{"$f":"Exp_Closure","v":"Select "},{"$f":"Exp_Meals","v":"Select "},{"$f":"Exp_Online","v":"Select "},{"$f":"Exp_IDEAReq","v":"Select "},{"$f":"Exp_Compliance","v":"Select "},{"$f":"Exp_Prepared","v":"Select "},{"$f":"Exp_Salaries","v":"Select "}]